Department Family,Entity,Payment Date,Expense Type,Expense Area,Supplier,System Transaction Number,Amount
Ministry of Justice,NOMS,28/03/2011,WIP - Acquisitions,Estates Capacity,KIER REGIONAL LTD,3931170," 9,228,577.20 "
Ministry of Justice,NOMS,28/03/2011,Superannuation,Unallocated Budgets,LONDON PENSIONS FUND AUTHORITY,3945211," 8,234,000.00 "
Ministry of Justice,NOMS,28/03/2011,Contracted-out Building Maintenance,Estates Capacity,HOME OFFICE,3932446," 8,024,653.00 "
Ministry of Justice,NOMS,30/03/2011,Contracted-out Building Maintenance,Estates Capacity,HOME OFFICE,3953994," 7,901,603.00 "
Ministry of Justice,NOMS,29/03/2011,Contracted-out Electronic Monitoring,National Operations Group,G4S CARE & JUSTICE SERVICES LTD,3947013," 4,814,022.16 "
Ministry of Justice,NOMS,18/03/2011,Contract IT Maintenance,MoJ ICT,STERIA LTD,3879397," 4,599,494.10 "
Ministry of Justice,NOMS,01/03/2011,Contracted-out Electronic Monitoring,National Operations Group,SERCO LTD,3910583," 4,141,978.31 "
Ministry of Justice,NOMS,22/03/2011,Contract IT Maintenance,MoJ ICT,STERIA LTD,3904402," 4,068,778.07 "
Ministry of Justice,NOMS,29/03/2011,Contract IT Maintenance,MoJ ICT,STERIA LTD,3940112," 3,879,872.23 "
Ministry of Justice,NOMS,29/03/2011,Accruals - Goods & services,MOJ Shared Services NOMS Delivery,J P MORGAN EUROPE LTD,3953911," 3,600,936.71 "
Ministry of Justice,NOMS,10/03/2011,Contracted-out operation of prisons and detention centres,Parc,BRIDGEND CUSTODIAL SERVICES LTD,3915200," 3,521,117.58 "
Ministry of Justice,NOMS,10/03/2011,Contracted-out operation of prisons and detention centres,Altcourse,FAZAKERLEY PRISON SERVICES LTD,3918178," 2,972,205.60 "
Ministry of Justice,NOMS,23/03/2011,Contracted-out Computer Services,Quantum,HP ENTERPRISE SERVICES UK LTD,3911826," 2,622,734.94 "
Ministry of Justice,NOMS,09/03/2011,Contracted-out operation of prisons and detention centres,Forest Bank,AGECROFT PRISON MANAGEMENT LTD,3919261," 2,584,199.81 "
Ministry of Justice,NOMS,04/03/2011,WIP - Acquisitions,Estates Capacity,WATES CONSTRUCTION LTD,3914573," 2,568,574.21 "
Ministry of Justice,NOMS,10/03/2011,WIP - Acquisitions,Estates Capacity,KIER NORTHERN,3918305," 2,534,674.80 "
Ministry of Justice,NOMS,02/03/2011,Accruals - Goods & services,MOJ Shared Services NOMS Delivery,J P MORGAN EUROPE LTD,3913403," 2,441,136.99 "
Ministry of Justice,NOMS,31/03/2011,Contract IT Maintenance,MoJ ICT,STERIA LTD,3940111," 2,435,743.19 "
Ministry of Justice,NOMS,30/03/2011,Contracted-out Probation Trusts,Northumbria Probation Trust,NORTHUMBRIA PROBATION TRUST,3922374," 2,373,667.00 "
Ministry of Justice,NOMS,21/03/2011,WIP - Acquisitions,NOMIS Programme,ORACLE CORPORATION U K LTD,3935187," 2,296,268.12 "
Ministry of Justice,NOMS,28/03/2011,Contracted-out operation of prisons and detention centres,Dovegate,MORETON PRISON SERVICES LTD,3926866," 2,164,663.57 "
Ministry of Justice,NOMS,10/03/2011,Contracted-out operation of prisons and detention centres,Bronzefield,ASHFORD PRISON SERVICES LIMITED,3918110," 2,034,524.66 "
Ministry of Justice,NOMS,28/03/2011,Contracted-out operation of prisons and detention centres,Ashfield,PUCKLECHURCH CUSTODIAL SERVICES LTD,3915216," 1,971,424.00 "
Ministry of Justice,NOMS,29/03/2011,Contracted-out Escorts,Prisoner Escort & Custody Service (PECS),RELIANCE SECURE TASK MANAGEMENT,3931211," 1,952,636.09 "
Ministry of Justice,NOMS,01/03/2011,Contracted-out Probation Trusts,Durham Tees Valley Probation Trust,DURHAM TEES VALLEY PROBATION TRUST,3909578," 1,925,072.00 "
Ministry of Justice,NOMS,10/03/2011,Contracted-out operation of prisons and detention centres,Doncaster,SERCO LTD,3922500," 1,918,908.75 "
Ministry of Justice,NOMS,30/03/2011,Miscellaneous,Unallocated Budgets,INLAND REVENUE ACCOUNTS OFFICE,3954897," 1,900,000.00 "
Ministry of Justice,NOMS,04/03/2011,Contracted-out operation of prisons and detention centres,Lowdham Grange,LOWDHAM GRANGE PRISON SERVICES LTD,3915215," 1,822,106.63 "
Ministry of Justice,NOMS,30/03/2011,Contracted-out Probation Trusts,Cheshire Probation Trust,CHESHIRE PROBATION TRUST,3933428," 1,728,276.00 "
Ministry of Justice,NOMS,25/03/2011,Contracted-out Escorts,Prisoner Escort & Custody Service (PECS),SERCO LTD,3914153," 1,699,089.59 "
Ministry of Justice,NOMS,15/03/2011,Contracted-out Probation Trusts,Avon and Somerset Probation Trust,AVON AND SOMERSET PROBATION TRUST,3916283," 1,682,739.00 "
Ministry of Justice,NOMS,30/03/2011,Contracted-out Probation Trusts,Nottinghamshire Probation Trust,NOTTINGHAMSHIRE PROBATION TRUST,3923033," 1,595,040.00 "
Ministry of Justice,NOMS,30/03/2011,Contracted-out Probation Trusts,Essex Probation Trust,ESSEX PROBATION TRUST,3923387," 1,591,710.42 "
Ministry of Justice,NOMS,30/03/2011,Contracted-out Escorts,Prisoner Escort & Custody Service (PECS),SERCO LTD,3914156," 1,500,431.23 "
Ministry of Justice,NOMS,18/03/2011,Contract IT Maintenance,MoJ ICT,STERIA LTD,3904401," 1,496,591.03 "
Ministry of Justice,NOMS,25/03/2011,Contracted-out Escorts,Prisoner Escort & Custody Service (PECS),G4S CARE & JUSTICE SERVICES LTD,3914143," 1,469,446.36 "
Ministry of Justice,NOMS,31/03/2011,WIP - Acquisitions,Estates Capacity,INTERSERVE PROJECT SERVICES LTD,3932422," 1,406,698.44 "
Ministry of Justice,NOMS,31/03/2011,WIP - Acquisitions,Estates Capacity,INTERSERVE PROJECT SERVICES LTD,3902508," 1,370,791.86 "
Ministry of Justice,NOMS,08/03/2011,WIP - Acquisitions,Estates Capacity,KIER REGIONAL LTD,3920891," 1,335,217.39 "
Ministry of Justice,NOMS,08/03/2011,Contracted-out Prison Shop,Chief Operating Officers Office,EXEL EUROPE1 LTD,3904138," 1,325,938.71 "
Ministry of Justice,NOMS,24/03/2011,Legal Representation,Chief Operating Officers Office,TREASURY SOLICITORS,3945196," 1,319,333.61 "
Ministry of Justice,NOMS,10/03/2011,Contracted-out operation of prisons and detention centres,Rye Hill,ONLEY PRISON SERVICES LTD,3918179," 1,296,910.66 "
Ministry of Justice,NOMS,30/03/2011,Contracted-out Probation Trusts,Leicestershire Probation Trust,LEICESTERSHIRE&RUTLAND PROBATION TRUST,3915002," 1,254,875.00 "
Ministry of Justice,NOMS,09/03/2011,Contracted-out operation of prisons and detention centres,Peterborough,PETERBOROUGH PRISON MANAGEMENT LTD,3918112," 1,218,301.72 "
Ministry of Justice,NOMS,30/03/2011,Contracted-out Probation Trusts,Derbyshire Probation Trust,DERBYSHIRE PROBATION TRUST,3906876," 1,119,850.00 "
Ministry of Justice,NOMS,07/03/2011,Contracted-out Prison Shop,Chief Operating Officers Office,EXEL EUROPE1 LTD,3860683," 1,114,855.60 "
Ministry of Justice,NOMS,24/03/2011,Contracted-out Escorts,Prisoner Escort & Custody Service (PECS),G4S CARE & JUSTICE SERVICES LTD,3913564," 1,085,134.03 "
Ministry of Justice,NOMS,07/03/2011,Contracted-out operation of prisons and detention centres,Peterborough,PETERBOROUGH PRISON MANAGEMENT LTD,3918123," 1,067,572.66 "
Ministry of Justice,NOMS,24/03/2011,Contracted-out Escorts,Prisoner Escort & Custody Service (PECS),G4S CARE & JUSTICE SERVICES LTD,3914142," 1,059,337.92 "
Ministry of Justice,NOMS,25/03/2011,Contracted-out Escorts,Prisoner Escort & Custody Service (PECS),SERCO LTD,3914154," 1,016,369.91 "
Ministry of Justice,NOMS,24/03/2011,Contracted-out Escorts,Prisoner Escort & Custody Service (PECS),G4S CARE & JUSTICE SERVICES LTD,3913563," 971,206.50 "
Ministry of Justice,NOMS,08/03/2011,Contract IT Maintenance,MoJ ICT,HP ENTERPRISE SERVICES UK LTD,3912435," 952,411.58 "
Ministry of Justice,NOMS,30/03/2011,Contracted-out Probation Trusts,Hertfordshire Probation Trust,HERTFORDSHIRE PROBATION TRUST,3947026," 924,606.71 "
Ministry of Justice,NOMS,17/03/2011,WIP - Acquisitions,Estates Capacity,KIER REGIONAL LTD,3909167," 900,074.40 "
Ministry of Justice,NOMS,23/03/2011,Contract IT Maintenance,NOMIS Programme,HP ENTERPRISE SERVICES UK LTD,3936390," 892,919.04 "
Ministry of Justice,NOMS,11/03/2011,WIP - Acquisitions,Estates Capacity,KIER REGIONAL LTD,3926638," 769,200.00 "
Ministry of Justice,NOMS,30/03/2011,Contracted-out Probation Trusts,Bedfordshire Probation Trust,BEDFORDSHIRE PROBATION TRUST,3932420," 766,861.16 "
Ministry of Justice,NOMS,24/03/2011,WIP - Acquisitions,Estates Capacity,KIER REGIONAL LTD,3921824," 765,333.60 "
Ministry of Justice,NOMS,22/03/2011,Contracted-out operation of prisons and detention centres,Wolds,G4S CARE & JUSTICE SERVICES LTD,3936621," 754,233.23 "
Ministry of Justice,NOMS,30/03/2011,Contracted-out Probation Trusts,Lancashire Probation Trust,LANCASHIRE PROBATION TRUST,3930295," 720,150.00 "
Ministry of Justice,NOMS,18/03/2011,Miscellaneous,Unallocated Budgets,INLAND REVENUE ACCOUNTS OFFICE,3935971," 720,000.00 "
Ministry of Justice,NOMS,29/03/2011,Contracted-out Escorts,Prisoner Escort & Custody Service (PECS),G4S CARE & JUSTICE SERVICES LTD,3914152," 692,900.38 "
Ministry of Justice,NOMS,11/03/2011,Contracted-out Other Services,National Operations Group,HOME GROUP LTD (STONHAM),3918420," 688,368.00 "
Ministry of Justice,NOMS,11/03/2011,Contracted-out Other Services,National Operations Group,HOME GROUP LTD (STONHAM),3899343," 688,368.00 "
Ministry of Justice,NOMS,30/03/2011,Contracted-out Probation Trusts,Northamptonshire Probation Trust,NORTHAMPTONSHIRE PROBATION TRUST,3908309," 671,585.00 "
Ministry of Justice,NOMS,07/03/2011,Prison Shop Cost of Sales,Chief Operating Officers Office,EXEL EUROPE1 LTD,3911865," 617,489.49 "
Ministry of Justice,NOMS,07/03/2011,Contracted-out operation of prisons and detention centres,Altcourse,FAZAKERLEY PRISON SERVICES LTD,3918254," 596,855.56 "
Ministry of Justice,NOMS,18/03/2011,WIP - Acquisitions,Estates Capacity,INTERSERVE PROJECT SERVICES LTD,3912961," 592,425.91 "
Ministry of Justice,NOMS,08/03/2011,Insurance,Director of Probation's Office,ROYAL & SUN ALLIANCE INSURANCE GROUP PLC,3907678," 577,762.50 "
Ministry of Justice,NOMS,23/03/2011,Contract IT Maintenance,NOMIS Programme,HP ENTERPRISE SERVICES UK LTD,3936468," 570,193.74 "
Ministry of Justice,NOMS,24/03/2011,Contracted-out Escorts,Prisoner Escort & Custody Service (PECS),G4S CARE & JUSTICE SERVICES LTD,3913572," 561,802.58 "
Ministry of Justice,NOMS,10/03/2011,Contracted-out Prison Shop,Chief Operating Officers Office,EXEL EUROPE1 LTD,3921017," 561,690.54 "
Ministry of Justice,NOMS,11/03/2011,Contract IT Maintenance,NOMS ICT,HP ENTERPRISE SERVICES UK LTD,3857163," 554,345.70 "
Ministry of Justice,NOMS,04/03/2011,Contracted-out operation of prisons and detention centres,Dovegate,MORETON PRISON SERVICES LTD,3915217," 528,120.25 "
Ministry of Justice,NOMS,24/03/2011,WIP - Acquisitions,Estates Capacity,INTERSERVE PROJECT SERVICES LTD,3928292," 518,546.40 "
Ministry of Justice,NOMS,31/03/2011,WIP - Acquisitions,Estates Capacity,KIER REGIONAL LTD,3913271," 517,207.20 "
Ministry of Justice,NOMS,29/03/2011,Other - Acquisitions,Wymott,HEIDELBERG GRAPHIC EQUIPMENT LTD,3933461," 516,000.00 "
Ministry of Justice,NOMS,18/03/2011,Contracted-out Escorts,Prisoner Escort & Custody Service (PECS),G4S CARE & JUSTICE SERVICES LTD,3913562," 515,724.00 "
Ministry of Justice,NOMS,24/03/2011,WIP - Acquisitions,Estates Capacity,WATES CONSTRUCTION LTD,3937169," 510,015.60 "
Ministry of Justice,NOMS,23/03/2011,WIP - Acquisitions,Estates Capacity,LOWDHAM GRANGE PRISON SERVICES LTD,3942936," 494,280.00 "
Ministry of Justice,NOMS,30/03/2011,Contracted-out Probation Trusts,Wiltshire Probation Trust,WILTSHIRE PROBATION TRUST,3920300," 474,984.00 "
Ministry of Justice,NOMS,25/03/2011,Rates and Ground Rents,Unallocated Budgets,HOME OFFICE,3907326," 458,000.00 "
Ministry of Justice,NOMS,28/03/2011,Probation - Loan Charges,Director of Probation's Office,LOCAL COUNCILS LOAN CHARGES,3948849," 450,000.00 "
Ministry of Justice,NOMS,28/03/2011,Probation - Loan Charges,Director of Probation's Office,LOCAL COUNCILS LOAN CHARGES,3948850," 450,000.00 "
Ministry of Justice,NOMS,08/03/2011,VISA Costs,MOJ Shared Services NOMS Delivery,COMPANY BARCLAYCARD,3920925," 448,940.13 "
Ministry of Justice,NOMS,07/03/2011,WIP - Acquisitions,Estates Capacity,BRIDGEND CUSTODIAL SERVICES LTD,3915262," 427,233.60 "
Ministry of Justice,NOMS,28/03/2011,WIP - Acquisitions,Estates Capacity,KIER REGIONAL LTD,3945858," 423,162.00 "
Ministry of Justice,NOMS,21/03/2011,Contract IT Maintenance,NOMIS Programme,ORACLE CORPORATION U K LTD,3935187," 420,975.22 "
Ministry of Justice,NOMS,30/03/2011,Contracted-out Resettlement Services,NOMS CFO,WEST YORKSHIRE PROBATION TRUST,3940150," 418,144.12 "
Ministry of Justice,NOMS,23/03/2011,Specialist Contractors,Director of HRs Office & Strategic Planning,PARITY RESOURCES LTD,3936827," 416,784.72 "
Ministry of Justice,NOMS,22/03/2011,Prison Shop Cost of Sales (No VAT),Chief Operating Officers Office,EXEL EUROPE1 LTD,3931801," 416,323.01 "
Ministry of Justice,NOMS,24/03/2011,WIP - Acquisitions,Estates Capacity,ISG REGIONS LTD,3919965," 405,528.00 "
Ministry of Justice,NOMS,10/03/2011,WIP - Acquisitions,Estates Capacity,KIER REGIONAL LTD,3922136," 398,186.10 "
Ministry of Justice,NOMS,08/03/2011,WIP - Acquisitions,Estates Capacity,VINCI CONSTRUCTION UK LTD,3919366," 389,458.80 "
Ministry of Justice,NOMS,29/03/2011,WIP - Acquisitions,Estates Capacity,BRIDGEND CUSTODIAL SERVICES LTD,3915263," 387,848.40 "
Ministry of Justice,NOMS,17/03/2011,Contracted-out Resettlement Services,NOMS CFO,PERTEMPS PEOPLE DEVELOPMENT GROUP,3931367," 369,827.86 "
Ministry of Justice,NOMS,04/03/2011,Specialist Contractors,Director of HRs Office & Strategic Planning,PARITY RESOURCES LTD,3893551," 366,282.61 "
Ministry of Justice,NOMS,31/03/2011,Prison Shop Cost of Sales,Chief Operating Officers Office,EXEL EUROPE1 LTD,3941101," 358,568.25 "
Ministry of Justice,NOMS,17/03/2011,WIP - Acquisitions,Estates Capacity,SHAYLOR CONSTRUCTION LTD,3930766," 342,271.20 "
Ministry of Justice,NOMS,30/03/2011,Contracted-out Probation Trusts,West Yorkshire Probation Trust,WEST YORKSHIRE PROBATION TRUST,3915540," 338,129.00 "
Ministry of Justice,NOMS,28/03/2011,Other - Acquisitions,Wymott,JENSEN UK LTD,3949748," 336,820.80 "
Ministry of Justice,NOMS,17/03/2011,Contracted-out Resettlement Services,NOMS CFO,PERTEMPS PEOPLE DEVELOPMENT GROUP,3931358," 320,957.76 "
Ministry of Justice,NOMS,07/03/2011,WIP - Acquisitions,Estates Capacity,INTERSERVE PROJECT SERVICES LTD,3917520," 302,880.00 "
Ministry of Justice,NOMS,08/03/2011,WIP - Acquisitions,Estates Capacity,VINCI CONSTRUCTION UK LTD,3919367," 300,120.00 "
Ministry of Justice,NOMS,25/03/2011,WIP - Acquisitions,Estates Capacity,INTERSERVE PROJECT SERVICES LTD,3936924," 299,302.55 "
Ministry of Justice,NOMS,30/03/2011,Contracted-out Resettlement Services,NOMS CFO,TRIBAL HUBS LTD,3948943," 293,220.00 "
Ministry of Justice,NOMS,22/03/2011,WIP - Acquisitions,Estates Capacity,LORNE STEWART PLC,3930787," 290,581.20 "
Ministry of Justice,NOMS,18/03/2011,Contracted-out operation of prisons and detention centres,Parc,BRIDGEND CUSTODIAL SERVICES LTD,3915380," 289,820.16 "
Ministry of Justice,NOMS,25/03/2011,Contracted-out Computer Services,NOMIS Programme,STERIA LTD,3917936," 281,740.62 "
Ministry of Justice,NOMS,22/03/2011,Contracted-out Building Maintenance,Estates Capacity,HOME OFFICE,3930131," 278,878.00 "
Ministry of Justice,NOMS,04/03/2011,WIP - Acquisitions,Estates Capacity,WATES CONSTRUCTION LTD,3915479," 275,911.20 "
Ministry of Justice,NOMS,10/03/2011,Contracted-out operation of prisons and detention centres,Doncaster,SERCO LTD,3922499," 275,000.00 "
Ministry of Justice,NOMS,04/03/2011,WIP - Acquisitions,Estates Capacity,WATES CONSTRUCTION LTD,3914571," 260,494.80 "
Ministry of Justice,NOMS,22/03/2011,Prison Shop Cost of Sales,Chief Operating Officers Office,EXEL EUROPE1 LTD,3931801," 260,371.97 "
Ministry of Justice,NOMS,28/03/2011,WIP - Acquisitions,Estates Capacity,VINCI CONSTRUCTION UK LTD,3948032," 257,889.60 "
Ministry of Justice,NOMS,01/03/2011,Contracted-out Escorts,Prisoner Escort & Custody Service (PECS),RELIANCE SECURE TASK MANAGEMENT,3842827," 257,313.66 "
Ministry of Justice,NOMS,23/03/2011,Contracted-out Escorts,Prisoner Escort & Custody Service (PECS),RELIANCE SECURE TASK MANAGEMENT,3931210," 257,313.66 "
Ministry of Justice,NOMS,18/03/2011,WIP - Acquisitions,Estates Capacity,INTERSERVE PROJECT SERVICES LTD,3881164," 253,548.68 "
Ministry of Justice,NOMS,01/03/2011,Contracted-out Resettlement Services,Newday ESF,WORKING LINKS,3845441," 253,145.45 "
Ministry of Justice,NOMS,14/03/2011,WIP - Acquisitions,Estates Capacity,HENRY BOOT CONSTRUCTION (U K) LTD,3929239," 249,937.20 "
Ministry of Justice,NOMS,17/03/2011,Contracted-out Resettlement Services,NOMS CFO,PERTEMPS PEOPLE DEVELOPMENT GROUP,3931428," 246,530.19 "
Ministry of Justice,NOMS,11/03/2011,WIP - Acquisitions,Estates Capacity,HENRY BOOT CONSTRUCTION (U K) LTD,3926512," 244,029.60 "
Ministry of Justice,NOMS,30/03/2011,Other - Acquisitions,Manchester,HEIDELBERG GRAPHIC EQUIPMENT LTD,3953075," 235,650.00 "
Ministry of Justice,NOMS,30/03/2011,Contracted-out Probation Trusts,North East DOMS Office,DURHAM TEES VALLEY PROBATION TRUST,3930935," 234,917.00 "
Ministry of Justice,NOMS,01/03/2011,WIP - Acquisitions,Estates Capacity,WATES CONSTRUCTION LTD,3910820," 231,926.40 "
Ministry of Justice,NOMS,29/03/2011,Rates and Ground Rents,MOJ Shared Services NOMS Delivery,DANMERC,3916308," 231,504.00 "
Ministry of Justice,NOMS,31/03/2011,Prison Shop Cost of Sales (No VAT),Chief Operating Officers Office,EXEL EUROPE1 LTD,3941101," 231,483.29 "
Ministry of Justice,NOMS,23/03/2011,Vehicle costs,Transport Group,TREASURY SOLICITORS,3943708," 229,398.48 "
Ministry of Justice,NOMS,30/03/2011,Contracted-out Library,Sheppey Clustered Services,KENT COUNTY COUNCIL,3952826," 224,097.77 "
Ministry of Justice,NOMS,01/03/2011,Structural works / maintenance - Fees & professional services,Estates Capacity,KIER REGIONAL LTD,3883765," 222,060.69 "
Ministry of Justice,NOMS,25/03/2011,WIP - Acquisitions,Estates Capacity,KIER REGIONAL LTD,3946479," 222,000.00 "
Ministry of Justice,NOMS,10/03/2011,General Maintenance Materials,East Midlands Estates,F P S (FIRE PROTECTION) LTD,3921688," 218,248.80 "
Ministry of Justice,NOMS,25/03/2011,WIP - Acquisitions,Estates Capacity,INTERSERVE PROJECT SERVICES LTD,3937672," 216,880.80 "
Ministry of Justice,NOMS,10/03/2011,WIP - Acquisitions,Full Sutton,ELITE SYSTEMS (GB) LTD,3923544," 216,000.00 "
Ministry of Justice,NOMS,17/03/2011,Contracted-out Resettlement Services,NOMS CFO,PERTEMPS PEOPLE DEVELOPMENT GROUP,3931368," 215,643.07 "
Ministry of Justice,NOMS,02/03/2011,Contracted-out Resettlement Services,NOMS CFO,A4E CONSULTING LTD,3898894," 214,241.70 "
Ministry of Justice,NOMS,17/03/2011,Contracted-out Resettlement Services,NOMS CFO,PERTEMPS PEOPLE DEVELOPMENT GROUP,3931430," 213,952.98 "
Ministry of Justice,NOMS,30/03/2011,Buildings - Acquisitions,Frankland,EMSC UK LTD,3950219," 209,552.40 "
Ministry of Justice,NOMS,08/03/2011,Inter-Unit Charge (IUC),MoJ ICT,HP ENTERPRISE SERVICES UK LTD,3917277," 205,967.77 "
Ministry of Justice,NOMS,04/03/2011,WIP - Acquisitions,Estates Capacity,VINCI CONSTRUCTION UK LTD,3915747," 204,516.00 "
Ministry of Justice,NOMS,04/03/2011,WIP - Acquisitions,Estates Capacity,VINCI CONSTRUCTION UK LTD,3915748," 203,050.80 "
Ministry of Justice,NOMS,14/03/2011,Counselling & Advisory Costs,Moorland,DONCASTER PRIMARY CARE TRUST,3927942," 196,295.00 "
Ministry of Justice,NOMS,01/03/2011,Uniforms & protective Clothing,Financial Performance,JIANGSU SUNSHINE IMPORT & EXPORT CO LTD,3891055," 192,723.00 "
Ministry of Justice,NOMS,30/03/2011,"New structural works, structural maintenance and equipment",Wymott,JENSEN UK LTD,3949074," 192,584.40 "
Ministry of Justice,NOMS,08/03/2011,WIP - Acquisitions,Estates Capacity,ISG REGIONS LTD,3919962," 190,274.40 "
Ministry of Justice,NOMS,16/03/2011,Gas,Haslar,CORONA ENERGY RETAIL 4 LTD,3933732," 182,633.08 "
Ministry of Justice,NOMS,09/03/2011,Consultancy,Estates Capacity,FAITHFUL + GOULD,3923480," 177,121.20 "
Ministry of Justice,NOMS,14/03/2011,Contracted-out Escorts,Prisoner Escort & Custody Service (PECS),SERCO LTD,3930974," 175,383.16 "
Ministry of Justice,NOMS,07/03/2011,Contract IT Maintenance,MoJ ICT,SUNGARD PUBLIC SECTOR LTD,3917965," 173,975.00 "
Ministry of Justice,NOMS,09/03/2011,General Maintenance Materials,East Midlands Estates,F P S (FIRE PROTECTION) LTD,3921407," 172,032.00 "
Ministry of Justice,NOMS,30/03/2011,Contracted-out Resettlement Services,NOMS CFO,LONDON PROBATION TRUST,3946687," 170,736.00 "
Ministry of Justice,NOMS,28/03/2011,Contracted-out Other Services,Quantum,HP ENTERPRISE SERVICES UK LTD,3948458," 169,919.64 "
Ministry of Justice,NOMS,25/03/2011,WIP - Acquisitions,Estates Capacity,ISG REGIONS LTD,3920032," 167,922.48 "
Ministry of Justice,NOMS,17/03/2011,Gas,Haslar,CORONA ENERGY RETAIL 4 LTD,3934979," 166,838.21 "
Ministry of Justice,NOMS,08/03/2011,WIP - Acquisitions,Estates Capacity,KIER REGIONAL LTD,3913270," 165,949.20 "
Ministry of Justice,NOMS,21/03/2011,WIP - Acquisitions,MoJ ICT,HP ENTERPRISE SERVICES UK LTD,3936612," 165,608.59 "
Ministry of Justice,NOMS,30/03/2011,Contracted-out Resettlement Services,NOMS CFO,LONDON PROBATION TRUST,3842930," 164,183.26 "
Ministry of Justice,NOMS,30/03/2011,Occupational Health Services,HR Policy & Reward Group,ATOS ORIGIN IT SERVICES UK LTD,3951416," 163,000.00 "
Ministry of Justice,NOMS,09/03/2011,Structural works / maintenance - Fees & professional services,Estates Capacity,KIER REGIONAL LTD,3922135," 162,871.54 "
Ministry of Justice,NOMS,24/03/2011,Contracted-out Escorts,Prisoner Escort & Custody Service (PECS),G4S CARE & JUSTICE SERVICES LTD,3914148," 159,417.27 "
Ministry of Justice,NOMS,29/03/2011,Consultancy,Estates Capacity,PICK EVERARD,3917462," 155,792.28 "
Ministry of Justice,NOMS,09/03/2011,Gas,Kirkham,COFATHEC ENERGY PFI LTD,3921409," 152,739.72 "
Ministry of Justice,NOMS,07/03/2011,WIP - Acquisitions,Estates Capacity,KIER REGIONAL LTD,3917798," 152,232.00 "
Ministry of Justice,NOMS,15/03/2011,Contracted-out Building Maintenance,Estates Capacity,HOME OFFICE,3930132," 151,463.00 "
Ministry of Justice,NOMS,30/03/2011,Contracted-out Probation Boards,Bure,NORFOLK AND SUFFOLK PROBATION TRUST,3932297," 150,358.50 "
Ministry of Justice,NOMS,09/03/2011,"New structural works, structural maintenance and equipment",Wakefield,AMBITEMP LTD,3922318," 150,000.00 "
Ministry of Justice,NOMS,11/03/2011,Contracted-out Building Maintenance,Brixton,CARILLION SERVICES 2006 LTD,3922649," 149,848.93 "
Ministry of Justice,NOMS,25/03/2011,Contracted-out Escorts,Prisoner Escort & Custody Service (PECS),SERCO LTD,3914162," 144,019.69 "
Ministry of Justice,NOMS,15/03/2011,Contracted-out Resettlement Services,NOMS CFO,PERTEMPS PEOPLE DEVELOPMENT GROUP,3931429," 143,749.38 "
Ministry of Justice,NOMS,01/03/2011,WIP - Acquisitions,Estates Capacity,INTERSERVE PROJECT SERVICES LTD,3910818," 143,275.89 "
Ministry of Justice,NOMS,14/03/2011,Contracted-out Probation Trusts,Devon and Cornwall Probation Trust,DEVON AND CORNWALL PROBATION TRUST,3928694," 143,000.00 "
Ministry of Justice,NOMS,03/03/2011,Consultancy,Estates Capacity,RIDER LEVETT BUCKNALL UK LTD,3913436," 141,641.22 "
Ministry of Justice,NOMS,15/03/2011,"New structural works, structural maintenance and equipment",East Midlands Estates,ABSOLUTE INSULATION LTD,3932941," 140,821.20 "
Ministry of Justice,NOMS,02/03/2011,Contracted-out Resettlement Services,NOMS CFO,LONDON PROBATION TRUST,3913367," 140,784.82 "
Ministry of Justice,NOMS,01/03/2011,Contracted-out Resettlement Services,NOMS CFO,MERSEYSIDE PROBATION TRUST,3897270," 140,545.52 "
Ministry of Justice,NOMS,22/03/2011,WIP - Acquisitions,Estates Capacity,KIER REGIONAL LTD,3917799," 137,769.60 "
Ministry of Justice,NOMS,11/03/2011,WIP - Acquisitions,Estates Capacity,KIER REGIONAL LTD,3918058," 137,280.00 "
Ministry of Justice,NOMS,17/03/2011,WIP - Acquisitions,Belmarsh,ACTIVE ENERGY LTD,3901410," 133,670.40 "
Ministry of Justice,NOMS,15/03/2011,Training and Further Education Courses,Learning and Development Group,SHEFFIELD HALLAM UNIVERSITY,3926260," 132,099.00 "
Ministry of Justice,NOMS,09/03/2011,Contracted-out Other Services,Gartree,COFATHEC ENERGY PFI LTD,3922502," 130,163.75 "
Ministry of Justice,NOMS,01/03/2011,Contracted-out Resettlement Services,NOMS CFO,THE MANCHESTER COLLEGE,3910846," 129,794.26 "
Ministry of Justice,NOMS,17/03/2011,Other - Acquisitions,Wellingborough,FALCON FOODSERVICE EQUIPMENT,3933314," 129,698.40 "
Ministry of Justice,NOMS,31/03/2011,Assets costing less than 10k purchased out of capital receipts from OGDs,East Midlands Estates,MB HUNT LTD,3883746," 128,820.00 "
Ministry of Justice,NOMS,11/03/2011,WIP - Acquisitions,Estates Capacity,WATES CONSTRUCTION LTD,3927636," 128,242.37 "
Ministry of Justice,NOMS,24/03/2011,Contracted-out Escorts,Prisoner Escort & Custody Service (PECS),G4S CARE & JUSTICE SERVICES LTD,3914147," 127,816.02 "
Ministry of Justice,NOMS,29/03/2011,Contracted-out Probation Boards,Manchester,GREATER MANCHESTER PROBATION TRUST,3949911," 126,602.79 "
Ministry of Justice,NOMS,30/03/2011,Contracted-out Other Services,Quantum,HOME OFFICE,3949739," 126,602.53 "
Ministry of Justice,NOMS,24/03/2011,Contracted-out Escorts,Prisoner Escort & Custody Service (PECS),G4S CARE & JUSTICE SERVICES LTD,3913569," 125,429.96 "
Ministry of Justice,NOMS,17/03/2011,Contracted-out Probation Trusts,Whitemoor,CAMBRIDGESHIRE & PETERBOROUGH PROBATION TRUST,3935808," 125,426.91 "
Ministry of Justice,NOMS,29/03/2011,Other - Acquisitions,Wymott,JENSEN UK LTD,3949744," 124,945.80 "
Ministry of Justice,NOMS,23/03/2011,Occupational Health Services,MOJ Project & ATOS,ATOS ORIGIN IT SERVICES UK LTD,3943557," 124,241.47 "
Ministry of Justice,NOMS,29/03/2011,Other - Acquisitions,Wymott,JENSEN UK LTD,3949747," 122,574.00 "
Ministry of Justice,NOMS,10/03/2011,Contracted-out Building Maintenance,Estates Capacity,HOME OFFICE,3924361," 122,500.00 "
Ministry of Justice,NOMS,21/03/2011,Contracted-out Building Maintenance,Estates Capacity,HOME OFFICE,3939717," 122,500.00 "
Ministry of Justice,NOMS,02/03/2011,Contract IT Maintenance,MoJ ICT,HP ENTERPRISE SERVICES UK LTD,3913255," 121,306.66 "
Ministry of Justice,NOMS,08/03/2011,Counselling & Advisory Costs,ROM - Yorkshire & Humberside,LIFELINE PROJECT,3920363," 121,033.40 "
Ministry of Justice,NOMS,17/03/2011,Buildings - Acquisitions,Everthorpe,ELITE SYSTEMS (GB) LTD,3852923," 120,515.04 "
Ministry of Justice,NOMS,30/03/2011,Other - Acquisitions,Channings Wood,DUST CONTROL SYSTEMS LTD,3937654," 119,880.00 "
Ministry of Justice,NOMS,14/03/2011,WIP - Professional Fees,Estates Capacity,HENRY BOOT CONSTRUCTION (U K) LTD,3928483," 118,805.58 "
Ministry of Justice,NOMS,30/03/2011,"New structural works, structural maintenance and equipment",Yorks & Humberside Estate Management,G WILKINSON CONSTRUCTION LTD,3948349," 117,580.80 "
Ministry of Justice,NOMS,14/03/2011,Contracted-out Resettlement Services,NOMS CFO,MERSEYSIDE PROBATION TRUST,3928686," 117,121.27 "
Ministry of Justice,NOMS,11/03/2011,"New structural works, structural maintenance and equipment",Channings Wood,INTERSERVE PROJECT SERVICES LTD,3926836," 117,074.88 "
Ministry of Justice,NOMS,24/03/2011,Contracted-out Escorts,Prisoner Escort & Custody Service (PECS),G4S CARE & JUSTICE SERVICES LTD,3913568," 116,895.00 "
Ministry of Justice,NOMS,08/03/2011,Contracted-out Resettlement Services,NOMS CFO,A4E CONSULTING LTD,3919797," 115,896.32 "
Ministry of Justice,NOMS,29/03/2011,WIP - Acquisitions,Estates Capacity,KIER REGIONAL LTD,3949814," 114,000.00 "
Ministry of Justice,NOMS,09/03/2011,Gas,Pentonville,COFATHEC ENERGY PFI LTD,3921056," 112,758.07 "
Ministry of Justice,NOMS,31/03/2011,Subsistence,HOPS Payroll Charge,CALDER CONFERENCE,3954888," 112,190.96 "
Ministry of Justice,NOMS,11/03/2011,Training and Further Education Courses,Organisational Development Group,UNIVERSITY OF CAMBRIDGE,3923735," 112,000.00 "
Ministry of Justice,NOMS,08/03/2011,Contracted-out Computer Services,Quantum,HP ENTERPRISE SERVICES UK LTD,3917282," 111,801.29 "
Ministry of Justice,NOMS,02/03/2011,Travel - Non-Taxable,HOPS Payroll Charge,CARLSON WAGONLIT TRAVEL,3913409," 111,780.45 "
Ministry of Justice,NOMS,16/03/2011,Contracted-out Probation Trusts,Leyhill,AVON AND SOMERSET PROBATION TRUST,3933166," 111,337.78 "
Ministry of Justice,NOMS,18/03/2011,Legal Representation,Chief Operating Officers Office,HER MAJESTY'S COURTS SERVICE,3935742," 110,763.60 "
Ministry of Justice,NOMS,02/03/2011,Other - Acquisitions,Swansea,FALCON FOODSERVICE EQUIPMENT,3806133," 110,759.03 "
Ministry of Justice,NOMS,03/03/2011,Subsistence,HOPS Payroll Charge,CALDER CONFERENCE,3914471," 109,912.30 "
Ministry of Justice,NOMS,10/03/2011,Contracted-out Other Services,North East DOMS Office,TEES ESK AND WEAR VALLEYS NHS TRUST,3923532," 108,763.75 "
Ministry of Justice,NOMS,30/03/2011,Contracted-out Probation Trusts,Liverpool,MERSEYSIDE PROBATION TRUST,3929723," 108,462.25 "
Ministry of Justice,NOMS,22/03/2011,Inter-Unit Charge (IUC),Peterborough,PETERBOROUGH PRISON MANAGEMENT LTD,3924471," 108,387.55 "
Ministry of Justice,NOMS,02/03/2011,WIP - Acquisitions,Estates Capacity,KIER REGIONAL LTD,3912801," 108,255.73 "
Ministry of Justice,NOMS,22/03/2011,Training and Further Education Courses,Learning and Development Group,DE MONTFORT UNIVERSITY HIGHER EDUCATION CORPORATION,3940268," 107,017.50 "
Ministry of Justice,NOMS,23/03/2011,Contracted-out Building Maintenance,Isis,CARILLION SERVICES 2006 LTD,3943627," 106,816.75 "
Ministry of Justice,NOMS,09/03/2011,Training and Further Education Courses,Learning and Development Group,NEWCASTLE COLLEGE,3912743," 106,755.75 "
Ministry of Justice,NOMS,31/03/2011,WIP - Professional Fees,Estates Capacity,AEDAS ARCHITECTS LTD,3851472," 103,776.61 "
Ministry of Justice,NOMS,10/03/2011,WIP - Acquisitions,Estates Capacity,CARILLION JM LIMITED,3924337," 102,701.93 "
Ministry of Justice,NOMS,04/03/2011,Specialist Contractors,Procurement Group,DRIVERS JONAS DELOITTE,3864395," 101,885.27 "
Ministry of Justice,NOMS,09/03/2011,WIP - Acquisitions,Estates Capacity,VINCI CONSTRUCTION UK LTD,3922629," 101,856.13 "
Ministry of Justice,NOMS,25/03/2011,Professional Advice,High Security Prisons Group,TREASURY SOLICITORS,3946533," 100,170.72 "
Ministry of Justice,NOMS,29/03/2011,Travel - Non-Taxable,HOPS Payroll Charge,CARLSON WAGONLIT TRAVEL,3950329," 100,134.26 "
Ministry of Justice,NOMS,02/03/2011,Secondments,Public Protection and Mental Health Group,CAMBRIDGESHIRE & PETERBOROUGH PROBATION TRUST,3892058," 100,055.38 "
Ministry of Justice,NOMS,21/03/2011,Contracted-out Probation Trusts,Rehabilitation Services Group,NORFOLK AND SUFFOLK PROBATION TRUST,3938462," 100,000.00 "
Ministry of Justice,NOMS,09/03/2011,Contracted-out Other Services,Gartree,COFATHEC ENERGY PFI LTD,3922501," 99,979.52 "
Ministry of Justice,NOMS,24/03/2011,Subsistence,HOPS Payroll Charge,CALDER CONFERENCE,3945145," 99,547.04 "
Ministry of Justice,NOMS,29/03/2011,Other - Acquisitions,Stocken,FALCON FOODSERVICE EQUIPMENT,3943939," 98,881.20 "
Ministry of Justice,NOMS,01/03/2011,WIP - Acquisitions,Estates Capacity,KIER REGIONAL LTD,3883765," 98,672.73 "
Ministry of Justice,NOMS,14/03/2011,Contracted-out Probation Trusts,Littlehey,CAMBRIDGESHIRE & PETERBOROUGH PROBATION TRUST,3929176," 98,439.00 "
Ministry of Justice,NOMS,28/03/2011,Other - Acquisitions,Wymott,JENSEN UK LTD,3949746," 97,269.00 "
Ministry of Justice,NOMS,29/03/2011,Contract IT Maintenance,MoJ ICT,STERIA LTD,3920684," 96,276.29 "
Ministry of Justice,NOMS,21/03/2011,Contracted-out Probation Trusts,Avon and Somerset Probation Trust,AVON AND SOMERSET PROBATION TRUST,3939497," 96,043.38 "
Ministry of Justice,NOMS,21/03/2011,WIP - Acquisitions,MoJ ICT,HP ENTERPRISE SERVICES UK LTD,3936395," 94,632.16 "
Ministry of Justice,NOMS,01/03/2011,Inter-Unit Charge (IUC),Wealstun,SANGWIN LIMITED,3877644," 94,027.20 "
Ministry of Justice,NOMS,28/03/2011,Other - Acquisitions,Wymott,JENSEN UK LTD,3949741," 94,006.20 "
Ministry of Justice,NOMS,28/03/2011,Contracted-out Medical services,Pentonville,NHS ISLINGTON PROVIDER SERVICES,3947815," 93,000.00 "
Ministry of Justice,NOMS,04/03/2011,Contracted-out operation of prisons and detention centres,Parc,BRIDGEND CUSTODIAL SERVICES LTD,3915401," 92,366.40 "
Ministry of Justice,NOMS,23/03/2011,WIP - Acquisitions,Estates Capacity,CALEDONIAN BUILDING SYSTEMS,3943460," 92,125.20 "
Ministry of Justice,NOMS,07/03/2011,Contracted-out Probation Trusts,South East DOMS Office,THAMES VALLEY PROBATION TRUST,3918026," 90,633.61 "
Ministry of Justice,NOMS,02/03/2011,Contracted-out Probation Trusts,Northumbria Probation Trust,NORTHUMBRIA PROBATION TRUST,3913408," 90,000.00 "
Ministry of Justice,NOMS,31/03/2011,In Cell TV Costs,Unallocated Budgets,COMPUTACENTER (U K) LTD,3954197," 89,948.98 "
Ministry of Justice,NOMS,10/03/2011,Subsistence,HOPS Payroll Charge,CALDER CONFERENCE,3925058," 89,689.97 "
Ministry of Justice,NOMS,01/03/2011,WIP - Acquisitions,Estates Capacity,WATES CONSTRUCTION LTD,3910821," 89,006.40 "
Ministry of Justice,NOMS,15/03/2011,Travel - Non-Taxable,HOPS Payroll Charge,CARLSON WAGONLIT TRAVEL,3930986," 88,371.81 "
Ministry of Justice,NOMS,09/03/2011,Contracted-out Other Services,New Hall,COFATHEC ENERGY PFI LTD,3921693," 88,219.36 "
Ministry of Justice,NOMS,08/03/2011,Contract IT Maintenance,MoJ ICT,HP ENTERPRISE SERVICES UK LTD,3918190," 87,957.59 "
Ministry of Justice,NOMS,22/03/2011,Contracted-out Resettlement Services,NOMS CFO,LEICESTERSHIRE&RUTLAND PROBATION TRUST,3939609," 87,697.20 "
Ministry of Justice,NOMS,08/03/2011,WIP - Acquisitions,Estates Capacity,KIER REGIONAL LTD,3920153," 86,640.00 "
Ministry of Justice,NOMS,30/03/2011,Training and Further Education Courses,Brinsford,ROFFEY PARK INSTITUTE,3894523," 86,100.00 "
Ministry of Justice,NOMS,23/03/2011,WIP - Acquisitions,Estates Capacity,CRISPIN & BORST LTD,3943843," 84,538.90 "
Ministry of Justice,NOMS,17/03/2011,Subsistence,HOPS Payroll Charge,CALDER CONFERENCE,3934792," 83,825.02 "
Ministry of Justice,NOMS,21/03/2011,Travel - Non-Taxable,HOPS Payroll Charge,CARLSON WAGONLIT TRAVEL,3940491," 83,726.73 "
Ministry of Justice,NOMS,03/03/2011,Buildings - Acquisitions,Kirklevington Grange,CAMBRIDGE GLASSHOUSE CO  LTD,3913583," 83,490.00 "
Ministry of Justice,NOMS,08/03/2011,Contracted-out Resettlement Services,NOMS CFO,PERTEMPS PEOPLE DEVELOPMENT GROUP,3914576," 82,917.65 "
Ministry of Justice,NOMS,09/03/2011,"New structural works, structural maintenance and equipment",Estates Capacity,VINCI CONSTRUCTION UK LTD,3922630," 81,531.60 "
Ministry of Justice,NOMS,30/03/2011,Buildings - Acquisitions,Risley,CAM-TEC SYSTEMS LTD,3947078," 81,456.86 "
Ministry of Justice,NOMS,30/03/2011,Contracted-out Resettlement Services,NOMS CFO,SERCO LTD,3951629," 80,242.21 "
Ministry of Justice,NOMS,29/03/2011,WIP - Acquisitions,Estates Capacity,WATES CONSTRUCTION LTD,3942086," 79,936.09 "
Ministry of Justice,NOMS,30/03/2011,Contracted-out Resettlement Services,NOMS CFO,SERCO LTD,3951625," 79,781.05 "
Ministry of Justice,NOMS,15/03/2011,Contracted-out Other Services,Dartmoor,COFATHEC ENERGY SERVICES UK LTD,3931058," 79,762.32 "
Ministry of Justice,NOMS,29/03/2011,WIP - Acquisitions,Estates Capacity,KIER REGIONAL LTD,3928490," 79,546.80 "
Ministry of Justice,NOMS,03/03/2011,Other - Acquisitions,Feltham,FALCON FOODSERVICE EQUIPMENT,3904141," 79,531.20 "
Ministry of Justice,NOMS,30/03/2011,"Books, Stationery & IT Consumables",Offender Employment Skills & Services Group,CARPENTER LTD,3947867," 79,171.14 "
Ministry of Justice,NOMS,10/03/2011,Contracted-out operation of prisons and detention centres,Bronzefield,ASHFORD PRISON SERVICES LIMITED,3924788," 78,968.12 "
Ministry of Justice,NOMS,23/03/2011,WIP - Acquisitions,Estates Capacity,CRISPIN & BORST LTD,3834372," 78,410.10 "
Ministry of Justice,NOMS,11/03/2011,Inter-Unit Charge (IUC),Isle of Wight,ISLE OF WIGHT COUNCIL,3903514," 78,049.91 "
Ministry of Justice,NOMS,25/03/2011,Contract IT Maintenance,Procurement Group,HP ENTERPRISE SERVICES UK LTD,3873711," 77,921.70 "
Ministry of Justice,NOMS,25/03/2011,Contract IT Maintenance,Procurement Group,HP ENTERPRISE SERVICES UK LTD,3903265," 77,921.70 "
Ministry of Justice,NOMS,08/03/2011,Contract IT Maintenance,MoJ ICT,HP ENTERPRISE SERVICES UK LTD,3920734," 77,580.00 "
Ministry of Justice,NOMS,30/03/2011,Contracted-out Probation Trusts,Chelmsford,ESSEX PROBATION TRUST,3935273," 77,513.00 "
Ministry of Justice,NOMS,30/03/2011,Contracted-out Probation Boards,Eastwood Park,AVON AND SOMERSET PROBATION TRUST,3933261," 76,914.86 "
Ministry of Justice,NOMS,24/03/2011,WIP - Acquisitions,Estates Capacity,WATES CONSTRUCTION LTD,3937170," 75,988.90 "
Ministry of Justice,NOMS,01/03/2011,Intangibles - Additions,Director of HRs Office & Strategic Planning,SPECIALIST COMPUTER CENTRES PLC,3908753," 75,600.00 "
Ministry of Justice,NOMS,09/03/2011,Contracted-out Resettlement Services,NOMS CFO,SOVA,3922980," 75,169.41 "
Ministry of Justice,NOMS,04/03/2011,Contracted-out operation of prisons and detention centres,Parc,BRIDGEND CUSTODIAL SERVICES LTD,3915399," 74,860.80 "
Ministry of Justice,NOMS,31/03/2011,Other - Acquisitions,Learning and Development Group,FALCON FOODSERVICE EQUIPMENT,3910300," 74,775.60 "
Ministry of Justice,NOMS,09/03/2011,Contracted-out Other Services,Hull,COFATHEC ENERGY PFI LTD,3921411," 74,530.56 "
Ministry of Justice,NOMS,09/03/2011,WIP - Acquisitions,Estates Capacity,HENRY BOOT CONSTRUCTION (U K) LTD,3921777," 74,292.18 "
Ministry of Justice,NOMS,03/03/2011,Other - Acquisitions,Downview,ELITE SYSTEMS (GB) LTD,3860567," 73,776.00 "
Ministry of Justice,NOMS,08/03/2011,Travel - Non-Taxable,HOPS Payroll Charge,CARLSON WAGONLIT TRAVEL,3920988," 73,709.16 "
Ministry of Justice,NOMS,03/03/2011,WIP - Acquisitions,Estates Capacity,LORNE STEWART PLC,3914370," 73,630.46 "
Ministry of Justice,NOMS,14/03/2011,Contracted-out Resettlement Services,NOMS CFO,MERSEYSIDE PROBATION TRUST,3928685," 72,857.28 "
Ministry of Justice,NOMS,07/03/2011,WIP - Acquisitions,Estates Capacity,KIER REGIONAL LTD,3917797," 72,579.60 "
Ministry of Justice,NOMS,08/03/2011,"New structural works, structural maintenance and equipment",East Midlands Estates,F STIMPSON (LEICESTER) LTD,3919978," 72,112.34 "
Ministry of Justice,NOMS,04/03/2011,Other - Acquisitions,Canterbury,LONDON & KENT AIR CONDITIONING LTD,3869931," 72,000.00 "
Ministry of Justice,NOMS,15/03/2011,WIP - Acquisitions,Estates Capacity,INTERSERVE PROJECT SERVICES LTD,3932044," 72,000.00 "
Ministry of Justice,NOMS,29/03/2011,WIP - Acquisitions,Estates Capacity,KIER REGIONAL LTD,3925854," 71,677.20 "
Ministry of Justice,NOMS,08/03/2011,VISA Costs,MOJ Shared Services NOMS Delivery,ARVAL UK LTD,3920917," 71,429.99 "
Ministry of Justice,NOMS,30/03/2011,WIP - Acquisitions,Estates Capacity,WATES CONSTRUCTION LTD,3951401," 71,359.20 "
Ministry of Justice,NOMS,30/03/2011,Contracted-out Plant and Equipment Maintenance,TSS Kent and Sussex,BSW HEATING LTD,3921847," 71,308.00 "
Ministry of Justice,NOMS,15/03/2011,Contracted-out Other Services,Isle of Wight,COFATHEC ENERGY SERVICES UK LTD,3931065," 71,037.66 "
Ministry of Justice,NOMS,25/03/2011,Contracted-out Escorts,Prisoner Escort & Custody Service (PECS),SERCO LTD,3914163," 70,953.06 "
Ministry of Justice,NOMS,28/03/2011,Other - Acquisitions,Guys Marsh,EMSC UK LTD,3950221," 70,928.40 "
Ministry of Justice,NOMS,29/03/2011,Contracted-out Other Services,Public Protection and Mental Health Group,UNIVERSITY OF NEWCASTLE-UPON-TYNE,3948626," 70,354.80 "
Ministry of Justice,NOMS,04/03/2011,Contracted-out operation of prisons and detention centres,Parc,BRIDGEND CUSTODIAL SERVICES LTD,3915402," 70,028.00 "
Ministry of Justice,NOMS,11/03/2011,Contracted-out Building Maintenance,New Hall,G WILKINSON CONSTRUCTION LTD,3923032," 70,000.00 "
Ministry of Justice,NOMS,23/03/2011,WIP - Acquisitions,Estates Capacity,KIER REGIONAL LTD,3941802," 69,616.80 "
Ministry of Justice,NOMS,11/03/2011,WIP - Acquisitions,Estates Capacity,KIER REGIONAL LTD,3926639," 69,600.00 "
Ministry of Justice,NOMS,15/03/2011,Contracted-out Probation Boards,Cardiff,WALES PROBATION TRUST,3930410," 69,294.02 "
Ministry of Justice,NOMS,30/03/2011,Contracted-out Probation Trusts,West Yorkshire Probation Trust,WEST YORKSHIRE PROBATION TRUST,3937407," 68,500.00 "
Ministry of Justice,NOMS,08/03/2011,VISA Costs,MOJ Shared Services NOMS Delivery,ARVAL UK LTD,3920922," 67,951.60 "
Ministry of Justice,NOMS,17/03/2011,Gas,Highpoint,CORONA ENERGY RETAIL 4 LTD,3935031," 67,361.11 "
Ministry of Justice,NOMS,30/03/2011,WIP - Acquisitions,Estates Capacity,WATES CONSTRUCTION LTD,3950494," 67,273.20 "
Ministry of Justice,NOMS,25/03/2011,Other - Acquisitions,Glen Parva,FALCON FOODSERVICE EQUIPMENT,3889015," 66,975.60 "
Ministry of Justice,NOMS,23/03/2011,In Cell TV Costs,Unallocated Budgets,COMPUTACENTER (U K) LTD,3943835," 66,869.33 "
Ministry of Justice,NOMS,07/03/2011,Electricity,Wymott,EDF ENERGY,3918566," 66,851.82 "
Ministry of Justice,NOMS,01/03/2011,"Books, Stationery & IT Consumables",Offender Employment Skills & Services Group,CARPENTER LTD,3897503," 66,518.33 "
Ministry of Justice,NOMS,22/03/2011,Contracted-out Other Services,Quantum,HP ENTERPRISE SERVICES UK LTD,3911527," 66,452.81 "
Ministry of Justice,NOMS,10/03/2011,Uniforms & protective Clothing,Security Group,DEENSIDE LTD,3922213," 66,405.24 "
Ministry of Justice,NOMS,15/03/2011,Contracted-out Other Services,Deerbolt,COFATHEC ENERGY SERVICES UK LTD,3931063," 65,862.59 "
Ministry of Justice,NOMS,30/03/2011,Other - Acquisitions,Transport Group,SEV GROUP LTD,3952942," 65,616.00 "
Ministry of Justice,NOMS,11/03/2011,Inter-Unit Charge (IUC),Isle of Wight,ISLE OF WIGHT COUNCIL,3903512," 65,549.92 "
Ministry of Justice,NOMS,31/03/2011,"New structural works, structural maintenance and equipment",East of England Regional NOMS Office,COURT CATERING EQUIPMENT LTD,3952876," 65,545.20 "
Ministry of Justice,NOMS,21/03/2011,WIP - Acquisitions,MoJ ICT,HP ENTERPRISE SERVICES UK LTD,3936394," 65,300.70 "
Ministry of Justice,NOMS,22/03/2011,Network Costs (GDN/MTS),Estates Capacity,BRAVO SOLUTION UK LTD,3939835," 65,055.05 "
Ministry of Justice,NOMS,18/03/2011,"New structural works, structural maintenance and equipment",Wakefield,F P S (FIRE PROTECTION) LTD,3907242," 65,023.20 "
Ministry of Justice,NOMS,15/03/2011,Contracted-out Other Services,Blundeston,COFATHEC ENERGY SERVICES UK LTD,3931055," 64,571.66 "
Ministry of Justice,NOMS,10/03/2011,Contracted-out Resettlement Services,NOMS CFO,SOVA,3922982," 64,101.54 "
Ministry of Justice,NOMS,10/03/2011,Raw Materials - ESS/LBA Industries,Wayland,THE GREEN OFFICE CO-OP,3924675," 63,829.79 "
Ministry of Justice,NOMS,02/03/2011,Contracted-out Probation Trusts,Sudbury,DERBYSHIRE PROBATION TRUST,3903173," 63,420.50 "
Ministry of Justice,NOMS,16/03/2011,Gas,Wormwood Scrubs,CORONA ENERGY RETAIL 4 LTD,3933697," 63,326.86 "
Ministry of Justice,NOMS,30/03/2011,Other - Acquisitions,Belmarsh,FALCON FOODSERVICE EQUIPMENT,3893644," 63,223.20 "
Ministry of Justice,NOMS,16/03/2011,"New structural works, structural maintenance and equipment",Pentonville,BARDON CONTRACTS LTD,3924745," 63,222.74 "
Ministry of Justice,NOMS,21/03/2011,Other - Acquisitions,Lewes,FALCON FOODSERVICE EQUIPMENT,3938410," 63,172.80 "
Ministry of Justice,NOMS,09/03/2011,Payments to voluntary Organisations,East of England Regional NOMS Office,ORMISTON CHILDREN & FAMILIES TRUST,3923245," 62,802.00 "
Ministry of Justice,NOMS,28/03/2011,Other - Acquisitions,Guys Marsh,EMSC UK LTD,3950222," 62,551.20 "
Ministry of Justice,NOMS,14/03/2011,Counselling & Advisory Costs,Pentonville,R A P T,3927987," 62,531.40 "
Ministry of Justice,NOMS,02/03/2011,Contracted-out Catering Services,MOJ Shared Services NOMS Delivery,ESS SUPPORT SERVICES WORLDWIDE,3912171," 62,493.09 "
Ministry of Justice,NOMS,21/03/2011,Contracted-out operation of prisons and detention centres,Wolds,G4S CARE & JUSTICE SERVICES LTD,3936622," 62,163.88 "
Ministry of Justice,NOMS,09/03/2011,General Maintenance Materials,East Midlands Estates,F P S (FIRE PROTECTION) LTD,3921689," 61,440.00 "
Ministry of Justice,NOMS,07/03/2011,Resource Grants / Grant-in-Aid,Area Services,THE TRUST WOMEN'S PROJECT,3918543," 61,284.50 "
Ministry of Justice,NOMS,02/03/2011,Contracted-out Probation Trusts,Sudbury,DERBYSHIRE PROBATION TRUST,3744485," 61,060.04 "
Ministry of Justice,NOMS,11/03/2011,Inter-Unit Charge (IUC),Isle of Wight,ISLE OF WIGHT COUNCIL,3903513," 60,810.60 "
Ministry of Justice,NOMS,04/03/2011,Contracted-out Resettlement Services,NOMS CFO,MERSEYSIDE PROBATION TRUST,3858656," 60,349.58 "
Ministry of Justice,NOMS,24/03/2011,"New structural works, structural maintenance and equipment",Gloucester,FROMEVALE LIMITED,3928854," 60,000.00 "
Ministry of Justice,NOMS,18/03/2011,Training and Further Education Courses,Organisational Development Group,ASHBOURNE ASSESSMENT SYSTEMS LTD,3932018," 60,000.00 "
Ministry of Justice,NOMS,09/03/2011,"New structural works, structural maintenance and equipment",Wakefield,AMBITEMP LTD,3922317," 60,000.00 "
Ministry of Justice,NOMS,11/03/2011,Other - Acquisitions,Holloway,FALCON FOODSERVICE EQUIPMENT,3888993," 59,746.80 "
Ministry of Justice,NOMS,24/03/2011,Buildings - Acquisitions,Everthorpe,SANGWIN LIMITED,3943595," 59,619.91 "
Ministry of Justice,NOMS,11/03/2011,Capital Grants / Grant-in-Aid,Warwickshire Probation Trust,WARWICKSHIRE PROBATION TRUST,3926611," 59,563.20 "
Ministry of Justice,NOMS,31/03/2011,Electricity,Lindholme,EDF ENERGY,3954852," 59,187.14 "
Ministry of Justice,NOMS,17/03/2011,Drugs,Rochester,A A H PHARMACEUTICALS LTD,3934799," 59,169.11 "
Ministry of Justice,NOMS,09/03/2011,Electricity,Lindholme,EDF ENERGY,3923841," 59,101.20 "
Ministry of Justice,NOMS,23/03/2011,General Maintenance Materials,Feltham,LILLEY LANDSCAPES AND BUILDING,3942246," 59,100.00 "
Ministry of Justice,NOMS,07/03/2011,Contracted-out Building Maintenance,Wales Prisons Estate Management Group (WPEMG),EAGERGALA LTD,3901809," 58,940.00 "
Ministry of Justice,NOMS,18/03/2011,Drugs,Rochester,A A H PHARMACEUTICALS LTD,3935874," 58,604.75 "
Ministry of Justice,NOMS,04/03/2011,Contracted-out operation of prisons and detention centres,Dovegate,MORETON PRISON SERVICES LTD,3915101," 58,464.00 "
Ministry of Justice,NOMS,21/03/2011,Contracted-out Probation Trusts,South East DOMS Office,THAMES VALLEY PROBATION TRUST,3940243," 58,000.00 "
Ministry of Justice,NOMS,31/03/2011,General Maintenance Materials,Sheppey Clustered Services,WILTS WHOLESALE ELECTRICAL CO LTD,3938838," 57,780.60 "
Ministry of Justice,NOMS,07/03/2011,Contracted-out operation of prisons and detention centres,Dovegate,MORETON PRISON SERVICES LTD,3915102," 57,401.19 "
Ministry of Justice,NOMS,08/03/2011,Contracted-out Library,Exeter,DEVON COUNTY COUNCIL,3897531," 56,848.29 "
Ministry of Justice,NOMS,24/03/2011,Contracted-out Plant and Equipment Maintenance,TSS Kent and Sussex,PEPCON LTD,3943084," 56,639.70 "
Ministry of Justice,NOMS,28/03/2011,Contracted-out Plant and Equipment Maintenance,TSS Kent and Sussex,BRITISH GAS SERVICES (COMMERCIAL) LTD,3949893," 56,434.00 "
Ministry of Justice,NOMS,30/03/2011,Tools & Equipment,Manchester,HEIDELBERG GRAPHIC EQUIPMENT LTD,3953392," 56,262.00 "
Ministry of Justice,NOMS,24/03/2011,Other - Acquisitions,Stafford,FORD-MAINWARING LTD,3942068," 56,210.40 "
Ministry of Justice,NOMS,21/03/2011,Other - Acquisitions,East of England Regional NOMS Office,BARTRAM MOWERS LTD,3939306," 55,950.00 "
Ministry of Justice,NOMS,10/03/2011,Subsistence,HOPS Payroll Charge,CALDER CONFERENCE,3925060," 55,743.17 "
Ministry of Justice,NOMS,10/03/2011,"New structural works, structural maintenance and equipment",TSS - South Central,ANDEL LIMITED,3921849," 55,650.00 "
Ministry of Justice,NOMS,11/03/2011,Other - Acquisitions,Leyhill,TERRY COOPER SERVICES (1985) LTD,3865127," 55,543.20 "
Ministry of Justice,NOMS,25/03/2011,Other - Acquisitions,Nottinghamshire Probation Trust,NOTTINGHAMSHIRE PROBATION TRUST,3946398," 55,008.00 "
Ministry of Justice,NOMS,09/03/2011,Counselling & Advisory Costs,Brixton,R A P T,3923388," 54,937.00 "
Ministry of Justice,NOMS,18/03/2011,Other - Acquisitions,Coldingley,TERRY COOPER SERVICES (1985) LTD,3863079," 54,746.40 "
Ministry of Justice,NOMS,07/03/2011,"Books, Stationery & IT Consumables",Offender Employment Skills & Services Group,CARPENTER LTD,3918349," 54,727.05 "
Ministry of Justice,NOMS,30/03/2011,Other - Acquisitions,Stoke Heath,DUGARD C LTD,3898119," 54,546.00 "
Ministry of Justice,NOMS,01/03/2011,"Books, Stationery & IT Consumables",Offender Employment Skills & Services Group,CARPENTER LTD,3909005," 54,349.31 "
Ministry of Justice,NOMS,02/03/2011,Contract IT Maintenance,MoJ ICT,HP ENTERPRISE SERVICES UK LTD,3913254," 54,340.07 "
Ministry of Justice,NOMS,23/03/2011,WIP - Acquisitions,Estates Capacity,KIER REGIONAL LTD,3941647," 54,232.80 "
Ministry of Justice,NOMS,31/03/2011,"New structural works, structural maintenance and equipment",Belmarsh,ACTIVE ENERGY LTD,3901411," 53,808.36 "
Ministry of Justice,NOMS,04/03/2011,Contract IT Maintenance,MoJ ICT,HP ENTERPRISE SERVICES UK LTD,3915891," 53,768.43 "
Ministry of Justice,NOMS,28/03/2011,General Maintenance Materials,Lewes,FEWELL ENGINEERING LIMITED,3942112," 53,047.20 "
Ministry of Justice,NOMS,15/03/2011,Contracted-out Other Services,Isle of Wight,COFATHEC ENERGY SERVICES UK LTD,3931059," 52,996.01 "
Ministry of Justice,NOMS,30/03/2011,"New structural works, structural maintenance and equipment",Whitemoor,PETERBOROUGH ROOFING COMPANY LTD,3952777," 52,980.00 "
Ministry of Justice,NOMS,15/03/2011,Other Fuels,Chelmsford,COFATHEC ENERGY SERVICES UK LTD,3931057," 52,873.74 "
Ministry of Justice,NOMS,25/03/2011,Specialist Contractors,Procurement Group,CAPGEMINI UK PLC,3928480," 52,800.00 "
Ministry of Justice,NOMS,30/03/2011,"Books, Stationery & IT Consumables",Offender Employment Skills & Services Group,CARPENTER LTD,3936712," 52,762.50 "
Ministry of Justice,NOMS,10/03/2011,WIP - Professional Fees,Estates Capacity,RIDER LEVETT BUCKNALL UK LTD,3922355," 52,544.74 "
Ministry of Justice,NOMS,15/03/2011,Gas,Lewes,COFATHEC ENERGY SERVICES UK LTD,3931062," 52,379.28 "
Ministry of Justice,NOMS,14/03/2011,Counselling & Advisory Costs,Wandsworth,R A P T,3928916," 52,356.60 "
Ministry of Justice,NOMS,03/03/2011,Specialist Contractors,NOMIS Programme,ADVANTAGE TECHNICAL RESOURCING,3912315," 51,840.00 "
Ministry of Justice,NOMS,03/03/2011,Consultancy,Estates Capacity,DRIVERS JONAS DELOITTE,3914468," 51,745.25 "
Ministry of Justice,NOMS,28/03/2011,WIP - Professional Fees,Estates Capacity,FAITHFUL + GOULD,3947843," 51,743.99 "
Ministry of Justice,NOMS,18/03/2011,WIP - Acquisitions,Estates Capacity,CRISPIN & BORST LTD,3926448," 51,465.60 "
Ministry of Justice,NOMS,15/03/2011,WIP - Professional Fees,Estates Capacity,ATKINS LTD,3911793," 51,335.78 "
Ministry of Justice,NOMS,31/03/2011,Secondments,Public Protection and Mental Health Group,HAMPSHIRE PROBATION TRUST,3952587," 51,233.22 "
Ministry of Justice,NOMS,29/03/2011,Other - Acquisitions,Verne (The),COUNTY CABINS,3945843," 51,145.20 "
Ministry of Justice,NOMS,17/03/2011,Contracted-out Medical services,Pentonville,NHS ISLINGTON PROVIDER SERVICES,3919521," 51,000.00 "
Ministry of Justice,NOMS,23/03/2011,Counselling & Advisory Costs,Hewell,SOUTH STAFFORDSHIRE AND SHROPSHIRE HEALTHCARE NHS FOUNDATION TRUST,3942476," 50,833.19 "
Ministry of Justice,NOMS,01/03/2011,"Books, Stationery & IT Consumables",Offender Employment Skills & Services Group,CARPENTER LTD,3889044," 50,772.16 "
Ministry of Justice,NOMS,24/03/2011,Contracted-out Probation Boards,Wandsworth,LONDON PROBATION TRUST,3941669," 50,669.89 "
Ministry of Justice,NOMS,31/03/2011,Contracted-out Resettlement Services,NOMS CFO,SERCO LTD,3951627," 50,535.33 "
Ministry of Justice,NOMS,04/03/2011,Contracted-out Resettlement Services,Manchester,ENGLISH CHURCHES HOUSING GROUP LTD,3915438," 50,000.00 "
Ministry of Justice,NOMS,25/03/2011,"Staff Compensation over 5,000",Maidstone,TREASURY SOLICITORS,3946420," 50,000.00 "
Ministry of Justice,NOMS,04/03/2011,Contracted-out Resettlement Services,Manchester,ENGLISH CHURCHES HOUSING GROUP LTD,3915439," 50,000.00 "
Ministry of Justice,NOMS,14/03/2011,"Staff Compensation over 5,000",Grendon,TREASURY SOLICITORS,3926506," 50,000.00 "
Ministry of Justice,NOMS,25/03/2011,WIP - Professional Fees,Estates Capacity,ATKINS LTD,3877311," 49,890.66 "
Ministry of Justice,NOMS,07/03/2011,Contracted-out operation of prisons and detention centres,Bronzefield,ASHFORD PRISON SERVICES LIMITED,3918007," 49,391.36 "
Ministry of Justice,NOMS,16/03/2011,Gas,Haslar,CORONA ENERGY RETAIL 4 LTD,3934774," 49,382.90 "
Ministry of Justice,NOMS,10/03/2011,Contracted-out Resettlement Services,Cookham Wood,MEDWAY COUNCIL,3924783," 49,298.70 "
Ministry of Justice,NOMS,16/03/2011,WIP - Professional Fees,Estates Capacity,AEDAS ARCHITECTS LTD,3928540," 49,293.85 "
Ministry of Justice,NOMS,22/03/2011,Other - Acquisitions,Wormwood Scrubs,FALCON FOODSERVICE EQUIPMENT,3940158," 49,230.00 "
Ministry of Justice,NOMS,15/03/2011,"New structural works, structural maintenance and equipment",East Midlands Estates,DIRECT RECLAIMS LTD,3933594," 49,200.00 "
Ministry of Justice,NOMS,25/03/2011,WIP - Acquisitions,Estates Capacity,INTERSERVE PROJECT SERVICES LTD,3937915," 48,752.40 "
Ministry of Justice,NOMS,11/03/2011,Gas,Preston,COFATHEC ENERGY PFI LTD,3921394," 48,590.51 "
Ministry of Justice,NOMS,24/03/2011,Contracted-out Escorts,Prisoner Escort & Custody Service (PECS),G4S CARE & JUSTICE SERVICES LTD,3914146," 48,144.48 "
Ministry of Justice,NOMS,01/03/2011,Capital Grants / Grant-in-Aid,Surrey & Sussex Probation Trust,SURREY & SUSSEX PROBATION TRUST,3909475," 48,000.00 "
Ministry of Justice,NOMS,08/03/2011,Contract IT Maintenance,MoJ ICT,HP ENTERPRISE SERVICES UK LTD,3920735," 47,804.29 "
Ministry of Justice,NOMS,15/03/2011,Specialist Contractors,Performance Information and Analysis Group,PRICEWATERHOUSECOOPERS LLP,3890548," 47,801.63 "
Ministry of Justice,NOMS,29/03/2011,General Maintenance Materials,Belmarsh,CONISTON LTD,3950242," 47,528.40 "
Ministry of Justice,NOMS,14/03/2011,"Prisoner Compensation over 5,000",Chief Operating Officers Office,TREASURY SOLICITORS,3929261," 47,500.00 "
Ministry of Justice,NOMS,11/03/2011,Payments to voluntary Organisations,East of England Regional NOMS Office,NACRO NCT (EAST ANGLIA),3926129," 47,479.00 "
Ministry of Justice,NOMS,23/03/2011,"New structural works, structural maintenance and equipment",East Midlands Estates,BI-TECH,3928545," 47,476.80 "
Ministry of Justice,NOMS,08/03/2011,WIP - Acquisitions,Estates Capacity,ISG REGIONS LTD,3920447," 47,238.00 "
Ministry of Justice,NOMS,21/03/2011,WIP - Acquisitions,MoJ ICT,HP ENTERPRISE SERVICES UK LTD,3936393," 47,204.45 "
Ministry of Justice,NOMS,01/03/2011,Contract IT Maintenance,NOMS ICT,HP ENTERPRISE SERVICES UK LTD,3911279," 47,124.00 "
Ministry of Justice,NOMS,15/03/2011,Specialist Contractors,Performance Information and Analysis Group,PRICEWATERHOUSECOOPERS LLP,3890546," 46,805.76 "
Ministry of Justice,NOMS,30/03/2011,Other - Acquisitions,Wymott,JENSEN UK LTD,3949742," 46,605.00 "
Ministry of Justice,NOMS,16/03/2011,Contracted-out Computer Services,NOMIS Programme,STERIA LTD,3904400," 46,375.00 "
Ministry of Justice,NOMS,28/03/2011,Other - Acquisitions,Long Lartin,KUNDIG LTD,3949919," 46,080.00 "
Ministry of Justice,NOMS,22/03/2011,Other - Acquisitions,Wandsworth,COLDSTORES LTD,3935503," 45,806.40 "
Ministry of Justice,NOMS,31/03/2011,Other - Acquisitions,East of England Regional NOMS Office,ELITE SYSTEMS (GB) LTD,3952990," 45,778.80 "
Ministry of Justice,NOMS,07/03/2011,Contracted-out operation of prisons and detention centres,Peterborough,PETERBOROUGH PRISON MANAGEMENT LTD,3917461," 45,682.56 "
Ministry of Justice,NOMS,28/03/2011,"New structural works, structural maintenance and equipment",Isle of Wight,COFELY LTD,3948054," 45,531.06 "
Ministry of Justice,NOMS,30/03/2011,Contracted-out Probation Trusts,Durham,DURHAM TEES VALLEY PROBATION TRUST,3934275," 45,466.81 "
Ministry of Justice,NOMS,14/03/2011,Clothing,Wealstun,J & B SEWING MACHINE CO LTD,3930883," 45,414.00 "
Ministry of Justice,NOMS,11/03/2011,Payments to voluntary Organisations,East of England Regional NOMS Office,NACRO NCT (EAST ANGLIA),3926130," 44,927.52 "
Ministry of Justice,NOMS,15/03/2011,Clothing,Offender Employment Skills & Services Group,JIANGSU SAINTY CORP LTD,3929772," 44,750.00 "
Ministry of Justice,NOMS,22/03/2011,Contract IT Maintenance,NOMIS Programme,HP ENTERPRISE SERVICES UK LTD,3936391," 44,555.57 "
Ministry of Justice,NOMS,09/03/2011,Contracted-out Probation Trusts,Durham,DURHAM TEES VALLEY PROBATION TRUST,3923394," 44,496.21 "
Ministry of Justice,NOMS,22/03/2011,Water and Sewage,Wormwood Scrubs,THAMES WATER UTILITIES LTD,3938406," 44,492.04 "
Ministry of Justice,NOMS,24/03/2011,Contracted-out Escorts,Prisoner Escort & Custody Service (PECS),G4S CARE & JUSTICE SERVICES LTD,3913567," 44,254.02 "
Ministry of Justice,NOMS,03/03/2011,Subsistence,HOPS Payroll Charge,CALDER CONFERENCE,3914472," 44,150.05 "
Ministry of Justice,NOMS,02/03/2011,Contracted-out Probation Boards,Nottingham,NOTTINGHAM PROBATION COMMITTEE,3913282," 44,144.01 "
Ministry of Justice,NOMS,10/03/2011,Drugs,Rochester,A A H PHARMACEUTICALS LTD,3913374," 43,975.97 "
Ministry of Justice,NOMS,30/03/2011,Contracted-out Escorts,Prisoner Escort & Custody Service (PECS),SERCO LTD,3914159," 43,961.64 "
Ministry of Justice,NOMS,14/03/2011,Contract IT Maintenance,MoJ ICT,TRIBAL CONSULTING,3929177," 43,944.00 "
Ministry of Justice,NOMS,17/03/2011,Gas,Highdown,CORONA ENERGY RETAIL 4 LTD,3934951," 43,599.42 "
Ministry of Justice,NOMS,10/03/2011,Other - Acquisitions,Littlehey,R K INTERNATIONAL MACHINE TOOLS LTD,3881114," 43,536.00 "
Ministry of Justice,NOMS,24/03/2011,Subsistence,HOPS Payroll Charge,CALDER CONFERENCE,3945144," 43,231.10 "
Ministry of Justice,NOMS,08/03/2011,Contracted-out Probation Trusts,Wiltshire Probation Trust,WILTSHIRE PROBATION TRUST,3920299," 43,000.00 "
Ministry of Justice,NOMS,28/03/2011,Other - Acquisitions,Long Lartin,HOMAG UK LTD,3948792," 42,780.00 "
Ministry of Justice,NOMS,23/03/2011,WIP - Acquisitions,Estates Capacity,CRISPIN & BORST LTD,3883323," 42,372.00 "
Ministry of Justice,NOMS,18/03/2011,Inter-Unit Charge (IUC),Director of Probation's Office,TREASURY SOLICITORS,3913385," 42,363.49 "
Ministry of Justice,NOMS,17/03/2011,Gas,Verne (The),CORONA ENERGY RETAIL 4 LTD,3935052," 42,301.72 "
Ministry of Justice,NOMS,08/03/2011,"New structural works, structural maintenance and equipment",TSS - South Central,MALTAWARD LTD,3915663," 42,040.80 "
Ministry of Justice,NOMS,29/03/2011,"New structural works, structural maintenance and equipment",Yorks & Humberside Estate Management,SANGWIN LIMITED,3913194," 42,000.00 "
Ministry of Justice,NOMS,25/03/2011,General Maintenance Materials,Dartmoor,DAVID R WHITE BUILDING SEVICES LTD,3946152," 42,000.00 "
Ministry of Justice,NOMS,22/03/2011,Gas,Bullingdon,CORONA ENERGY RETAIL 4 LTD,3934925," 41,954.87 "
Ministry of Justice,NOMS,31/03/2011,Subsistence,HOPS Payroll Charge,CALDER CONFERENCE,3954883," 41,673.00 "
Ministry of Justice,NOMS,16/03/2011,Structural works / maintenance - Fees & professional services,Estates Capacity,JACOBS ENGINEERING UK,3884120," 41,627.41 "
Ministry of Justice,NOMS,30/03/2011,Other - Acquisitions,Highdown,SEV GROUP LTD,3949579," 41,338.80 "
Ministry of Justice,NOMS,10/03/2011,"New structural works, structural maintenance and equipment",Huntercombe,ELITE SYSTEMS (GB) LTD,3827393," 41,331.80 "
Ministry of Justice,NOMS,24/03/2011,Contracted-out Visitor's Centres,Littlehey,LITTLEHEY VISITORS CENTRE ASSOCIATION,3943874," 41,320.00 "
Ministry of Justice,NOMS,07/03/2011,Electricity,Acklington,EDF ENERGY,3918710," 41,239.52 "
Ministry of Justice,NOMS,28/03/2011,Contracted-out Computer Services,NOMIS Programme,HP ENTERPRISE SERVICES UK LTD,3948466," 41,208.76 "
Ministry of Justice,NOMS,11/03/2011,Contract IT Maintenance,MOJ Project & ATOS,HP ENTERPRISE SERVICES UK LTD,3912613," 41,095.40 "
Ministry of Justice,NOMS,07/03/2011,Electricity,Frankland,EDF ENERGY,3918715," 41,091.37 "
Ministry of Justice,NOMS,07/03/2011,Contracted-out Other Services,Quantum,HP ENTERPRISE SERVICES UK LTD,3917466," 41,046.84 "
Ministry of Justice,NOMS,28/03/2011,Contracted-out Other Services,Quantum,HP ENTERPRISE SERVICES UK LTD,3947338," 41,046.84 "
Ministry of Justice,NOMS,29/03/2011,Specialist Contractors,HR Secondments Group,P A CONSULTING SERVICES LTD,3950425," 41,004.00 "
Ministry of Justice,NOMS,17/03/2011,Gas,Wormwood Scrubs,CORONA ENERGY RETAIL 4 LTD,3934998," 40,948.62 "
Ministry of Justice,NOMS,28/03/2011,Recruitment,Organisational Development Group,HAMPSHIRE CONSTABULARY,3948136," 40,895.00 "
Ministry of Justice,NOMS,08/03/2011,Library Fees,Bure,NORFOLK COUNTY COUNCIL,3853163," 40,733.52 "
Ministry of Justice,NOMS,14/03/2011,Inter-Unit Charge (IUC),Holme House,ESS SUPPORT SERVICES WORLDWIDE,3921019," 40,670.40 "
Ministry of Justice,NOMS,17/03/2011,Gas,Channings Wood,CORONA ENERGY RETAIL 4 LTD,3934887," 40,659.26 "
Ministry of Justice,NOMS,31/03/2011,Contracted-out Probation Trusts,Business and Service Development Group,KENT PROBATION TRUST,3923694," 40,524.78 "
Ministry of Justice,NOMS,09/03/2011,Other - Acquisitions,Lindholme,IMPERIAL MACHINE CO LTD,3846499," 40,501.07 "
Ministry of Justice,NOMS,04/03/2011,Contracted-out Resettlement Services,NOMS CFO,MERSEYSIDE PROBATION TRUST,3915943," 40,324.00 "
Ministry of Justice,NOMS,25/03/2011,Contracted-out Escorts,Prisoner Escort & Custody Service (PECS),SERCO LTD,3914157," 40,308.82 "
Ministry of Justice,NOMS,24/03/2011,"New structural works, structural maintenance and equipment",East Midlands Estates,GRAINGER ELECTRICAL,3926811," 40,023.20 "
Ministry of Justice,NOMS,31/03/2011,General Maintenance Materials,Long Lartin,THC MIDLANDS LIMITED,3953515," 40,008.48 "
Ministry of Justice,NOMS,16/03/2011,Incentive Schemes,Moorland,XEXEC LTD,3933395," 40,000.00 "
Ministry of Justice,NOMS,21/03/2011,Resource Grants / Grant-in-Aid,Rehabilitation Services Group,CLINKS,3940302," 40,000.00 "
Ministry of Justice,NOMS,10/03/2011,Contracted-out Visitor's Centres,Pentonville,PRISON ADVICE & CARE TRUST (P A C T),3903572," 40,000.00 "
Ministry of Justice,NOMS,07/03/2011,Electricity,Highdown,EDF ENERGY,3918659," 39,825.89 "
Ministry of Justice,NOMS,17/03/2011,Gas,Wandsworth,CORONA ENERGY RETAIL 4 LTD,3934942," 39,623.51 "
Ministry of Justice,NOMS,22/03/2011,Consultancy,Estates Capacity,G V A GRIMLEY,3917939," 39,590.64 "
Ministry of Justice,NOMS,25/03/2011,Consumables,Procurement Group,JIANGSU SUNSHINE IMPORT & EXPORT CO LTD,3946489," 39,401.88 "
Ministry of Justice,NOMS,28/03/2011,Contracted-out Probation Trusts,Wellingborough,NORTHAMPTONSHIRE PROBATION TRUST,3948347," 39,325.37 "
Ministry of Justice,NOMS,01/03/2011,Contracted-out Probation Trusts,Wellingborough,NORTHAMPTONSHIRE PROBATION TRUST,3908491," 39,282.29 "
Ministry of Justice,NOMS,02/03/2011,Legal Representation,Director of Probation's Office,TREASURY SOLICITORS,3913380," 39,043.69 "
Ministry of Justice,NOMS,04/03/2011,Contracted-out operation of prisons and detention centres,Lowdham Grange,LOWDHAM GRANGE PRISON SERVICES LTD,3915214," 38,993.92 "
Ministry of Justice,NOMS,09/03/2011,Contracted-out Probation Trusts,Preston,LANCASHIRE PROBATION TRUST,3921765," 38,977.10 "
Ministry of Justice,NOMS,31/03/2011,"New structural works, structural maintenance and equipment",Winchester,CHURCHES MAINTENENCE SERVICES,3950283," 38,802.00 "
Ministry of Justice,NOMS,17/03/2011,Gas,Belmarsh,CORONA ENERGY RETAIL 4 LTD,3935017," 38,774.18 "
Ministry of Justice,NOMS,28/03/2011,"New structural works, structural maintenance and equipment",Whitemoor,SCHNEIDER ELECTRIC BUILDING UK LIMITED,3910623," 38,546.93 "
Ministry of Justice,NOMS,23/03/2011,Other - Acquisitions,Preston,JLA LTD,3941942," 38,514.00 "
Ministry of Justice,NOMS,09/03/2011,Contracted-out Library,Dover,KENT COUNTY COUNCIL,3923557," 38,292.54 "
Ministry of Justice,NOMS,28/03/2011,Assets costing less than 10k purchased out of capital receipts from OGDs,Leyhill,GARDENER ENERGY MANAGEMENT LTD-GEM LTD,3906193," 38,235.60 "
Ministry of Justice,NOMS,25/03/2011,Consumables,Procurement Group,JIANGSU SUNSHINE IMPORT & EXPORT CO LTD,3946488," 38,156.88 "
Ministry of Justice,NOMS,07/03/2011,Electricity,Manchester,EDF ENERGY,3918647," 38,124.41 "
Ministry of Justice,NOMS,04/03/2011,Contracted-out Probation Trusts,Whatton,NOTTINGHAMSHIRE PROBATION TRUST,3911467," 38,052.83 "
Ministry of Justice,NOMS,08/03/2011,Contracted-out Probation Trusts,Whatton,NOTTINGHAMSHIRE PROBATION TRUST,3916866," 38,052.83 "
Ministry of Justice,NOMS,28/03/2011,Other - Acquisitions,Huntercombe,FALCON FOODSERVICE EQUIPMENT,3895045," 38,023.20 "
Ministry of Justice,NOMS,15/03/2011,WIP - Professional Fees,Estates Capacity,BAILEY PARTNERSHIP,3923009," 37,840.64 "
Ministry of Justice,NOMS,14/03/2011,Contracted-out Resettlement Services,ROM - Yorkshire & Humberside,SHELTER,3927896," 37,711.54 "
Ministry of Justice,NOMS,07/03/2011,Electricity,Wandsworth,EDF ENERGY,3918557," 37,681.74 "
Ministry of Justice,NOMS,17/03/2011,Gas,Sheppey Clustered Services,CORONA ENERGY RETAIL 4 LTD,3934904," 37,494.29 "
Ministry of Justice,NOMS,31/03/2011,WIP - Acquisitions,Estates Capacity,KIER REGIONAL LTD,3882803," 37,145.77 "
Ministry of Justice,NOMS,30/03/2011,Inter-Unit Charge (IUC),Wormwood Scrubs,LONDON PROBATION TRUST,3902412," 37,107.49 "
Ministry of Justice,NOMS,16/03/2011,Contracted-out Probation Boards,Bure,NORFOLK AND SUFFOLK PROBATION TRUST,3932233," 37,078.69 "
Ministry of Justice,NOMS,17/03/2011,Gas,Glen Parva,CORONA ENERGY RETAIL 4 LTD,3934898," 37,036.03 "
Ministry of Justice,NOMS,25/03/2011,General Maintenance Materials,Wales Prisons Estate Management Group (WPEMG),ENGINEERING SERVICES (SOUTH WEST) LTD,3911462," 37,017.88 "
Ministry of Justice,NOMS,09/03/2011,Miscellaneous,Dorchester,F P S (FIRE PROTECTION) LTD,3921388," 37,008.00 "
Ministry of Justice,NOMS,14/03/2011,Counselling & Advisory Costs,East Midlands DOMS Office,DERBYSHIRE PROBATION TRUST,3930928," 37,000.00 "
Ministry of Justice,NOMS,15/03/2011,General Maintenance Materials,Business and Strategic Planning,HOME OFFICE,3930990," 36,958.15 "
Ministry of Justice,NOMS,29/03/2011,Counselling & Advisory Costs,Eastwood Park,AVON & WILTSHIRE MENTAL HEALTH PARTNERSHIP N H S TRUST,3948914," 36,854.00 "
Ministry of Justice,NOMS,18/03/2011,Gas,Feltham,CORONA ENERGY RETAIL 4 LTD,3934939," 36,805.51 "
Ministry of Justice,NOMS,03/03/2011,Counselling & Advisory Costs,Eastwood Park,AVON & WILTSHIRE MENTAL HEALTH PARTNERSHIP N H S TRUST,3908463," 36,787.00 "
Ministry of Justice,NOMS,04/03/2011,Contracted-out operation of prisons and detention centres,Lowdham Grange,LOWDHAM GRANGE PRISON SERVICES LTD,3915099," 36,786.79 "
Ministry of Justice,NOMS,17/03/2011,Gas,Littlehey,CORONA ENERGY RETAIL 4 LTD,3935056," 36,548.90 "
Ministry of Justice,NOMS,02/03/2011,Library Fees,Huntercombe,OXFORDSHIRE COUNTY COUNCIL,3906134," 36,425.00 "
Ministry of Justice,NOMS,04/03/2011,"New structural works, structural maintenance and equipment",Exeter,W MAGES (REWINDS) LTD,3915691," 36,360.00 "
Ministry of Justice,NOMS,08/03/2011,Counselling & Advisory Costs,Styal,LIFELINE PROJECT,3920360," 36,247.54 "
Ministry of Justice,NOMS,28/03/2011,Counselling & Advisory Costs,Styal,LIFELINE PROJECT,3946018," 36,247.54 "
Ministry of Justice,NOMS,29/03/2011,Counselling & Advisory Costs,Birmingham,SOUTH STAFFORDSHIRE AND SHROPSHIRE HEALTHCARE NHS FOUNDATION TRUST,3949163," 36,167.35 "
Ministry of Justice,NOMS,01/03/2011,WIP - Professional Fees,Estates Capacity,ATKINS LTD,3911153," 35,802.85 "
Ministry of Justice,NOMS,21/03/2011,General Maintenance Materials,Holloway,SPECIAL PURPOSE ELECTRONICS LTD,3937806," 35,758.80 "
Ministry of Justice,NOMS,14/03/2011,Counselling & Advisory Costs,Wormwood Scrubs,R A P T,3928918," 35,740.00 "
Ministry of Justice,NOMS,28/03/2011,WIP - Acquisitions,Estates Capacity,KIER REGIONAL LTD,3948038," 35,551.20 "
Ministry of Justice,NOMS,11/03/2011,Office Equipment Purchases Under 10k,Belmarsh,KINGS WASTE SOLUTIONS LTD,3892281," 35,400.00 "
Ministry of Justice,NOMS,04/03/2011,Other - Acquisitions,Chelmsford,FALCON FOODSERVICE EQUIPMENT,3914227," 35,354.40 "
Ministry of Justice,NOMS,17/03/2011,Other - Acquisitions,Wealstun,FALCON FOODSERVICE EQUIPMENT,3889016," 35,268.00 "
Ministry of Justice,NOMS,22/03/2011,Contracted-out Building Maintenance,TSS Kent and Sussex,FOLKNOLL SERVICES,3936633," 35,136.00 "
Ministry of Justice,NOMS,09/03/2011,"Third Party Compensation over 5,000",Coldingley,TREASURY SOLICITORS,3920924," 35,000.00 "
Ministry of Justice,NOMS,10/03/2011,Training and Further Education Courses,Featherstone,JHP GROUP LTD,3906179," 35,000.00 "
Ministry of Justice,NOMS,16/03/2011,Counselling & Advisory Costs,Holloway,R A P T,3933475," 34,970.15 "
Ministry of Justice,NOMS,14/03/2011,"New structural works, structural maintenance and equipment",Askham Grange,G WILKINSON CONSTRUCTION LTD,3929045," 34,920.70 "
Ministry of Justice,NOMS,04/03/2011,Electricity,Birmingham,EDF ENERGY,3915919," 34,918.04 "
Ministry of Justice,NOMS,31/03/2011,In Cell TV Costs,Unallocated Budgets,COMPUTACENTER (U K) LTD,3954191," 34,917.05 "
Ministry of Justice,NOMS,07/03/2011,Electricity,Liverpool,EDF ENERGY,3918572," 34,905.17 "
Ministry of Justice,NOMS,17/03/2011,Gas,Frankland,CORONA ENERGY RETAIL 4 LTD,3935049," 34,879.55 "
Ministry of Justice,NOMS,17/03/2011,Gas,Acklington,CORONA ENERGY RETAIL 4 LTD,3934840," 34,839.68 "
Ministry of Justice,NOMS,15/03/2011,Buildings - Acquisitions,Wales Prisons Estate Management Group (WPEMG),SEDDON PROPERTY SERVICES LTD,3921508," 34,778.40 "
Ministry of Justice,NOMS,09/03/2011,Contracted-out Other Services,Gloucester,COFATHEC ENERGY PFI LTD,3921799," 34,758.05 "
Ministry of Justice,NOMS,07/03/2011,Consultancy,Estates Capacity,G V A GRIMLEY,3917938," 34,753.02 "
Ministry of Justice,NOMS,18/03/2011,Contracted-out Building Maintenance,Lindholme,G WILKINSON CONSTRUCTION LTD,3933506," 34,724.52 "
Ministry of Justice,NOMS,25/03/2011,Contracted-out Escorts,Prisoner Escort & Custody Service (PECS),SERCO LTD,3914158," 34,638.50 "
Ministry of Justice,NOMS,08/03/2011,Other - Acquisitions,Norwich,FALCON FOODSERVICE EQUIPMENT,3852815," 34,617.86 "
Ministry of Justice,NOMS,15/03/2011,Clothing,Offender Employment Skills & Services Group,JIANGSU SAINTY CORP LTD,3929655," 34,557.60 "
Ministry of Justice,NOMS,07/03/2011,Electricity,Ranby,EDF ENERGY,3918642," 34,524.89 "
Ministry of Justice,NOMS,08/03/2011,Contracted-out operation of prisons and detention centres,Peterborough,PETERBOROUGH PRISON MANAGEMENT LTD,3917460," 34,487.04 "
Ministry of Justice,NOMS,11/03/2011,Other - Acquisitions,Maidstone,TERRY COOPER SERVICES (1985) LTD,3865156," 34,423.20 "
Ministry of Justice,NOMS,30/03/2011,Contracted-out Escorts,Prisoner Escort & Custody Service (PECS),SERCO LTD,3945964," 34,335.10 "
Ministry of Justice,NOMS,31/03/2011,Contracted-out Building Maintenance,Wetherby,SANGWIN LIMITED,3952974," 34,273.20 "
Ministry of Justice,NOMS,30/03/2011,Raw Materials - ESS/LBA Industries Internal Use within the HO,Coldingley,ARRANDEED SERVICES,3937215," 34,248.00 "
Ministry of Justice,NOMS,07/03/2011,Contracted-out operation of prisons and detention centres,Rye Hill,ONLEY PRISON SERVICES LTD,3916325," 33,943.06 "
Ministry of Justice,NOMS,16/03/2011,Contracted-out operation of prisons and detention centres,Peterborough,PETERBOROUGH PRISON MANAGEMENT LTD,3917459," 33,916.25 "
Ministry of Justice,NOMS,18/03/2011,Contracted-out operation of prisons and detention centres,Peterborough,PETERBOROUGH PRISON MANAGEMENT LTD,3935414," 33,916.25 "
Ministry of Justice,NOMS,24/03/2011,Other - Acquisitions,Huntercombe,SPECIAL PURPOSE ELECTRONICS LTD,3923014," 33,896.40 "
Ministry of Justice,NOMS,08/03/2011,Contracted-out operation of prisons and detention centres,Peterborough,PETERBOROUGH PRISON MANAGEMENT LTD,3918122," 33,885.48 "
Ministry of Justice,NOMS,07/03/2011,Electricity,Sheppey Clustered Services,EDF ENERGY,3918657," 33,791.87 "
Ministry of Justice,NOMS,04/03/2011,Assets costing less than 10k purchased out of capital receipts from OGDs,Leyhill,MITIE ENGINEERING SERVICES (BRISTOL) LTD,3912900," 33,720.70 "
Ministry of Justice,NOMS,08/03/2011,Contracted-out operation of prisons and detention centres,Forest Bank,AGECROFT PRISON MANAGEMENT LTD,3919317," 33,705.09 "
Ministry of Justice,NOMS,22/03/2011,"New structural works, structural maintenance and equipment",Bristol,K A GINGELL LTD,3940058," 33,556.80 "
Ministry of Justice,NOMS,15/03/2011,"New structural works, structural maintenance and equipment",Bristol,FROMEVALE LIMITED,3928855," 33,534.00 "
Ministry of Justice,NOMS,14/03/2011,Contracted-out Probation Trusts,Glen Parva,LEICESTERSHIRE&RUTLAND PROBATION TRUST,3928257," 33,296.57 "
Ministry of Justice,NOMS,23/03/2011,Contracted-out Probation Boards,Pentonville,LONDON PROBATION TRUST,3941670," 33,295.01 "
Ministry of Justice,NOMS,17/03/2011,Gas,Edmunds Hill,CORONA ENERGY RETAIL 4 LTD,3935031," 33,177.87 "
Ministry of Justice,NOMS,17/03/2011,Gas,Holme House,CORONA ENERGY RETAIL 4 LTD,3934960," 33,113.72 "
Ministry of Justice,NOMS,28/03/2011,Contract IT Maintenance,Public Protection and Mental Health Group,HOME OFFICE,3913975," 33,103.92 "
Ministry of Justice,NOMS,15/03/2011,Counselling & Advisory Costs,Bullingdon,R A P T,3933476," 33,041.50 "
Ministry of Justice,NOMS,17/03/2011,Gas,Woodhill,CORONA ENERGY RETAIL 4 LTD,3934846," 32,846.50 "
Ministry of Justice,NOMS,21/03/2011,Water and Sewage,Sheppey Clustered Services,SOUTHERN WATER SERVICES LTD,3938358," 32,729.33 "
Ministry of Justice,NOMS,30/03/2011,Inter-Unit Charge (IUC),Ranby,NOTTINGHAMSHIRE PROBATION TRUST,3874063," 32,674.19 "
Ministry of Justice,NOMS,04/03/2011,Contracted-out Plant and Equipment Maintenance,TSS Kent and Sussex,HADENE BUILDING SERVICES LTD,3881132," 32,662.00 "
Ministry of Justice,NOMS,10/03/2011,Contracted-out Probation Trusts,Channings Wood,DEVON AND CORNWALL PROBATION TRUST,3921468," 32,539.33 "
Ministry of Justice,NOMS,15/03/2011,Other - Acquisitions,Bristol,AVONWOOD DEVELOPMENTS LTD,3904140," 32,400.00 "
Ministry of Justice,NOMS,17/03/2011,Gas,Sheppey Clustered Services,CORONA ENERGY RETAIL 4 LTD,3934935," 32,222.62 "
Ministry of Justice,NOMS,09/03/2011,Secondments,NOMS Communications,NORTHAMPTONSHIRE PROBATION TRUST,3913186," 32,157.82 "
Ministry of Justice,NOMS,04/03/2011,WIP - Professional Fees,Estates Capacity,JACOBS ENGINEERING UK,3915749," 32,114.86 "
Ministry of Justice,NOMS,17/03/2011,Gas,Featherstone,CORONA ENERGY RETAIL 4 LTD,3934948," 32,066.47 "
Ministry of Justice,NOMS,04/03/2011,Electricity,Sheppey Clustered Services,EDF ENERGY,3915934," 32,013.96 "
Ministry of Justice,NOMS,24/03/2011,"Staff Compensation over 5,000",Leyhill,TREASURY SOLICITORS,3946480," 32,000.00 "
Ministry of Justice,NOMS,31/03/2011,Contracted-out Probation Trusts,Hewell,WEST MERCIA PROBATION TRUST,3951407," 31,929.53 "
Ministry of Justice,NOMS,07/03/2011,Electricity,Risley,EDF ENERGY,3918545," 31,898.71 "
Ministry of Justice,NOMS,31/03/2011,Office Equipment Purchases Under 10k,Ranby,BGL RIEBER LTD,3954308," 31,512.00 "
Ministry of Justice,NOMS,10/03/2011,"New structural works, structural maintenance and equipment",TSS West Midlands Area,CENTRAL HIGH RISE LTD,3923670," 31,484.40 "
Ministry of Justice,NOMS,07/03/2011,Contracted-out Probation Boards,Woodhill,THAMES VALLEY PROBATION TRUST,3917985," 31,481.13 "
Ministry of Justice,NOMS,22/03/2011,Contracted-out Other Services,Quantum,HP ENTERPRISE SERVICES UK LTD,3908455," 31,387.37 "
Ministry of Justice,NOMS,30/03/2011,WIP - Acquisitions,Estates Capacity,WATES CONSTRUCTION LTD,3952040," 31,216.76 "
Ministry of Justice,NOMS,29/03/2011,Contracted-out Probation Boards,Wormwood Scrubs,LONDON PROBATION TRUST,3941668," 31,054.44 "
Ministry of Justice,NOMS,30/03/2011,Contracted-out Probation Trusts,Wales Probation Trust,WALES PROBATION TRUST,3918449," 31,000.00 "
Ministry of Justice,NOMS,03/03/2011,Counselling & Advisory Costs,Nottingham,PHOENIX FUTURES,3903481," 30,858.40 "
Ministry of Justice,NOMS,25/03/2011,Secondments,Public Protection and Mental Health Group,STAFFORDSHIRE AND WEST MIDLANDS PROBATION TRUST,3938699," 30,818.36 "
Ministry of Justice,NOMS,30/03/2011,"New structural works, structural maintenance and equipment",Lancaster Farms,GARSIDE & LAYCOCK,3952439," 30,678.84 "
Ministry of Justice,NOMS,15/03/2011,WIP - Acquisitions,Estates Capacity,GREHAN CONTRACTORS LTD,3880843," 30,678.66 "
Ministry of Justice,NOMS,07/03/2011,"New structural works, structural maintenance and equipment",TSS West Midlands Area,SHAYLOR CONSTRUCTION LTD,3912568," 30,600.00 "
Ministry of Justice,NOMS,14/03/2011,Counselling & Advisory Costs,Highdown,R A P T,3928972," 30,557.20 "
Ministry of Justice,NOMS,23/03/2011,"New structural works, structural maintenance and equipment",East Midlands Estates,NORTH MIDLAND CONSTRUCTION PLC,3942544," 30,435.60 "
Ministry of Justice,NOMS,11/03/2011,Works,Estates Capacity,BIRMINGHAM BARBED TAPE LTD,3923533," 30,240.00 "
Ministry of Justice,NOMS,17/03/2011,Gas,Leyhill,CORONA ENERGY RETAIL 4 LTD,3934933," 30,131.60 "
Ministry of Justice,NOMS,09/03/2011,"New structural works, structural maintenance and equipment",Lewes,R W GREEN LIMITED,3923515," 30,100.86 "
Ministry of Justice,NOMS,21/03/2011,WIP - Acquisitions,MoJ ICT,HP ENTERPRISE SERVICES UK LTD,3936397," 30,011.41 "
Ministry of Justice,NOMS,21/03/2011,Phase 1,Moorland,DONCASTER PRIMARY CARE TRUST,3927943," 30,000.00 "
Ministry of Justice,NOMS,14/03/2011,"Prisoner Compensation over 5,000",Pentonville,TREASURY SOLICITORS,3929311," 30,000.00 "
Ministry of Justice,NOMS,16/03/2011,Contracted-out Other Services,Holloway,LONDON BOROUGH OF ISLINGTON.,3932602," 30,000.00 "
Ministry of Justice,NOMS,23/03/2011,In Cell TV Costs,Unallocated Budgets,COMPUTACENTER (U K) LTD,3943836," 29,991.93 "
Ministry of Justice,NOMS,02/03/2011,General Maintenance Materials,East Midlands Estates,PENDRICH HEIGHT SERVICES LTD,3913158," 29,892.00 "
Ministry of Justice,NOMS,31/03/2011,Counselling & Advisory Costs,Liverpool,LIFELINE PROJECT,3953060," 29,857.47 "
Ministry of Justice,NOMS,07/03/2011,Electricity,Woodhill,EDF ENERGY,3918731," 29,835.44 "
Ministry of Justice,NOMS,28/03/2011,Contracted-out Other Services,Quantum,HP ENTERPRISE SERVICES UK LTD,3948507," 29,732.88 "
Ministry of Justice,NOMS,21/03/2011,Contracted-out Education,Dover,THE MANCHESTER COLLEGE,3939560," 29,722.35 "
Ministry of Justice,NOMS,24/03/2011,Contracted-out Education,Dover,THE MANCHESTER COLLEGE,3942716," 29,722.35 "
Ministry of Justice,NOMS,04/03/2011,Electricity,Bullingdon,EDF ENERGY,3915915," 29,642.85 "
Ministry of Justice,NOMS,07/03/2011,Electricity,Belmarsh,EDF ENERGY,3918662," 29,618.66 "
Ministry of Justice,NOMS,07/03/2011,Electricity,Full Sutton,EDF ENERGY,3918611," 29,236.66 "
Ministry of Justice,NOMS,08/03/2011,Counselling & Advisory Costs,Liverpool,LIFELINE PROJECT,3919561," 29,220.00 "
Ministry of Justice,NOMS,17/03/2011,Gas,Ranby,CORONA ENERGY RETAIL 4 LTD,3934885," 29,206.13 "
Ministry of Justice,NOMS,17/03/2011,Gas,Leeds,CORONA ENERGY RETAIL 4 LTD,3934915," 29,195.22 "
Ministry of Justice,NOMS,17/03/2011,Gas,Portland,CORONA ENERGY RETAIL 4 LTD,3934888," 29,099.06 "
Ministry of Justice,NOMS,14/03/2011,"New structural works, structural maintenance and equipment",Highdown,COLT SERVICE LTD,3895043," 29,086.56 "
Ministry of Justice,NOMS,16/03/2011,Other - Acquisitions,Littlehey,NEDERMAN LTD,3932484," 29,064.00 "
Ministry of Justice,NOMS,30/03/2011,Secondments,Public Protection and Mental Health Group,AVON AND SOMERSET PROBATION TRUST,3935748," 29,002.02 "
Ministry of Justice,NOMS,10/03/2011,Staff Mess Sales,Isis,ARAMARK LTD,3915893," 28,962.84 "
Ministry of Justice,NOMS,14/03/2011,Counselling & Advisory Costs,Sheppey Clustered Services,R A P T,3928971," 28,885.95 "
Ministry of Justice,NOMS,31/03/2011,In Cell TV Costs,Unallocated Budgets,COMPUTACENTER (U K) LTD,3954183," 28,874.36 "
Ministry of Justice,NOMS,04/03/2011,Other - Acquisitions,Huntercombe,FALCON FOODSERVICE EQUIPMENT,3915480," 28,845.60 "
Ministry of Justice,NOMS,15/03/2011,Clothing,Offender Employment Skills & Services Group,JIANGSU SAINTY CORP LTD,3929654," 28,817.64 "
Ministry of Justice,NOMS,24/03/2011,Other - Acquisitions,Preston,3663 BFS GROUP LTD,3945209," 28,788.00 "
Ministry of Justice,NOMS,09/03/2011,WIP - Professional Fees,Estates Capacity,AEDAS ARCHITECTS LTD,3918916," 28,697.11 "
Ministry of Justice,NOMS,08/03/2011,Contracted-out operation of prisons and detention centres,Bronzefield,ASHFORD PRISON SERVICES LIMITED,3917280," 28,696.64 "
Ministry of Justice,NOMS,07/03/2011,Electricity,Leeds,EDF ENERGY,3918531," 28,652.70 "
Ministry of Justice,NOMS,29/03/2011,Contracted-out Library,Wellingborough,NORTHAMPTONSHIRE COUNTY COUNCIL,3888131," 28,595.40 "
Ministry of Justice,NOMS,17/03/2011,Gas,Birmingham,CORONA ENERGY RETAIL 4 LTD,3935009," 28,572.02 "
Ministry of Justice,NOMS,07/03/2011,Contracted-out Medical services,Belmarsh,THE SEAGRAVE TRUST,3918380," 28,502.25 "
Ministry of Justice,NOMS,22/03/2011,Rates and Ground Rents,Business and Service Development Group,KING STURGE & CO LTD,3940189," 28,500.00 "
Ministry of Justice,NOMS,14/03/2011,Contracted-out Probation Boards,Gartree,LEICESTERSHIRE&RUTLAND PROBATION TRUST,3928256," 28,475.48 "
Ministry of Justice,NOMS,02/03/2011,Water and Sewage,Risley,UNITED UTILITIES WATER PLC,3905909," 28,460.86 "
Ministry of Justice,NOMS,07/03/2011,Assets costing less than 10k purchased out of capital receipts from OGDs,East Midlands Estates,SETSQUARE LTD,3918288," 28,380.24 "
Ministry of Justice,NOMS,09/03/2011,Other - Acquisitions,Reading,SPECIAL PURPOSE ELECTRONICS LTD,3923013," 28,332.00 "
Ministry of Justice,NOMS,23/03/2011,Staff Mess Sales,Isis,ARAMARK LTD,3943778," 28,158.96 "
Ministry of Justice,NOMS,28/03/2011,Contracted-out Computer Services,NOMIS Programme,HP ENTERPRISE SERVICES UK LTD,3948465," 27,982.54 "
Ministry of Justice,NOMS,15/03/2011,WIP - Acquisitions,Estates Capacity,CARILLION JM LIMITED,3908788," 27,941.62 "
Ministry of Justice,NOMS,28/02/2011,WIP - Acquisitions,Estates Capacity,CARILLION JM LIMITED,3908788," 27,941.62 "
Ministry of Justice,NOMS,03/03/2011,WIP - Acquisitions,Deerbolt,BARTRAM MOWERS LTD,3903536," 27,930.00 "
Ministry of Justice,NOMS,07/03/2011,Electricity,Highpoint,EDF ENERGY,3918639," 27,928.33 "
Ministry of Justice,NOMS,29/03/2011,"New structural works, structural maintenance and equipment",East of England Regional NOMS Office,PRINCEBUILD,3949608," 27,921.31 "
Ministry of Justice,NOMS,25/03/2011,Contracted-out Probation Boards,Belmarsh,LONDON PROBATION TRUST,3941100," 27,916.31 "
Ministry of Justice,NOMS,17/03/2011,Gas,Stafford,CORONA ENERGY RETAIL 4 LTD,3934853," 27,889.21 "
Ministry of Justice,NOMS,07/03/2011,Electricity,Wormwood Scrubs,EDF ENERGY,3918632," 27,857.69 "
Ministry of Justice,NOMS,24/03/2011,Contracted-out Library,Blantyre House,KENT COUNTY COUNCIL,3942914," 27,857.00 "
Ministry of Justice,NOMS,22/03/2011,Gas,Maidstone,CORONA ENERGY RETAIL 4 LTD,3935032," 27,802.08 "
Ministry of Justice,NOMS,21/03/2011,Other Fuels,Sudbury,TOTAL BUTLER,3933375," 27,780.72 "
Ministry of Justice,NOMS,18/03/2011,Other Fuels,Coldingley,HARVEST ENERGY LTD,3935530," 27,726.83 "
Ministry of Justice,NOMS,16/03/2011,Contracted-out Probation Trusts,Norwich,NORFOLK AND SUFFOLK PROBATION TRUST,3932299," 27,726.78 "
Ministry of Justice,NOMS,30/03/2011,Contracted-out Probation Trusts,Norwich,NORFOLK AND SUFFOLK PROBATION TRUST,3935151," 27,726.78 "
Ministry of Justice,NOMS,29/03/2011,Contracted-out Other Services,Isis,JLA LTD,3950323," 27,724.13 "
Ministry of Justice,NOMS,08/03/2011,WIP - Acquisitions,Estates Capacity,KIER REGIONAL LTD,3876401," 27,603.60 "
Ministry of Justice,NOMS,07/03/2011,Contracted-out operation of prisons and detention centres,Altcourse,FAZAKERLEY PRISON SERVICES LTD,3918256," 27,472.42 "
Ministry of Justice,NOMS,07/03/2011,Contracted-out operation of prisons and detention centres,Parc,BRIDGEND CUSTODIAL SERVICES LTD,3915022," 27,408.58 "
Ministry of Justice,NOMS,28/03/2011,Contract IT Maintenance,MOJ Project & ATOS,HP ENTERPRISE SERVICES UK LTD,3948198," 27,302.01 "
Ministry of Justice,NOMS,14/03/2011,Contracted-out operation of prisons and detention centres,NOMS Cymru Regional Services,BRIDGEND CUSTODIAL SERVICES LTD,3930412," 27,254.95 "
Ministry of Justice,NOMS,17/03/2011,Gas,Aylesbury,CORONA ENERGY RETAIL 4 LTD,3934993," 27,176.82 "
Ministry of Justice,NOMS,02/03/2011,Legal Representation,Director of Probation's Office,TREASURY SOLICITORS,3913383," 27,171.69 "
Ministry of Justice,NOMS,18/03/2011,Other Fuels,Sudbury,TOTAL BUTLER,3933497," 27,146.81 "
Ministry of Justice,NOMS,23/03/2011,Contracted-out Probation Trusts,Holloway,LONDON PROBATION TRUST,3941673," 27,135.45 "
Ministry of Justice,NOMS,17/03/2011,Gas,Lindholme,CORONA ENERGY RETAIL 4 LTD,3934895," 27,061.36 "
Ministry of Justice,NOMS,17/03/2011,Gas,Hewell,CORONA ENERGY RETAIL 4 LTD,3935011," 27,005.16 "
Ministry of Justice,NOMS,07/03/2011,"Prisoner Compensation over 5,000",Wandsworth,TREASURY SOLICITORS,3918489," 27,000.00 "
Ministry of Justice,NOMS,07/03/2011,Contract IT Maintenance,MoJ ICT,SUNGARD PUBLIC SECTOR LTD,3917966," 26,976.27 "
Ministry of Justice,NOMS,18/03/2011,Office Equipment Purchases Under 10k,Littlehey,RADIOCOMS SYSTEMS LTD,3935689," 26,966.40 "
Ministry of Justice,NOMS,31/03/2011,Contracted-out Library,Leicester,LEICESTER CITY COUNCIL,3952006," 26,931.70 "
Ministry of Justice,NOMS,07/03/2011,Electricity,Wakefield,EDF ENERGY,3918706," 26,894.34 "
Ministry of Justice,NOMS,17/03/2011,Gas,Norwich,CORONA ENERGY RETAIL 4 LTD,3935030," 26,777.99 "
Ministry of Justice,NOMS,08/03/2011,Secondments,NOMIS Programme,YORK AND NORTH YORKSHIRE PROBATION TRUST,3912849," 26,705.34 "
Ministry of Justice,NOMS,17/03/2011,Gas,Moorland,CORONA ENERGY RETAIL 4 LTD,3934883," 26,697.35 "
Ministry of Justice,NOMS,10/03/2011,Other - Acquisitions,Garth,IMPERIAL MACHINE CO LTD,3846502," 26,687.77 "
Ministry of Justice,NOMS,17/03/2011,Gas,Mount (The),CORONA ENERGY RETAIL 4 LTD,3935042," 26,665.20 "
Ministry of Justice,NOMS,29/03/2011,Contracted-out Probation Boards,Onley,NORTHAMPTONSHIRE PROBATION TRUST,3948378," 26,650.49 "
Ministry of Justice,NOMS,07/03/2011,Electricity,Holme House,EDF ENERGY,3918709," 26,601.12 "
Ministry of Justice,NOMS,15/03/2011,Other - Acquisitions,Cardiff,COLDSTORES LTD,3929687," 26,588.40 "
Ministry of Justice,NOMS,24/03/2011,Other - Acquisitions,Latchmere House,FALCON FOODSERVICE EQUIPMENT,3945022," 26,499.60 "
Ministry of Justice,NOMS,24/03/2011,Inventory A/P Accrual,Isle of Wight,INTERNATIONAL PLYWOOD PLC,3884132," 26,495.56 "
Ministry of Justice,NOMS,08/03/2011,Contracted-out Probation Boards,Styal,CHESHIRE PROBATION TRUST,3919949," 26,399.23 "
Ministry of Justice,NOMS,16/03/2011,Official Postage & Couriers,MOJ Shared Services NOMS Delivery,ROYAL MAIL GROUP PLC,3933295," 26,376.30 "
Ministry of Justice,NOMS,17/03/2011,Gas,Haverigg,CORONA ENERGY RETAIL 4 LTD,3934841," 26,339.98 "
Ministry of Justice,NOMS,08/03/2011,Other - Acquisitions,Verne (The),SEV GROUP LTD,3920942," 26,292.00 "
Ministry of Justice,NOMS,23/03/2011,Other - Acquisitions,Sudbury,J J SMITH & CO (WOODWORKING MACHINERY) LTD,3943569," 26,276.40 "
Ministry of Justice,NOMS,02/03/2011,Water and Sewage,Preston,UNITED UTILITIES WATER PLC,3913365," 26,275.64 "
Ministry of Justice,NOMS,07/03/2011,General Maintenance Materials,Wales Prisons Estate Management Group (WPEMG),EAGERGALA LTD,3908614," 26,202.00 "
Ministry of Justice,NOMS,09/03/2011,"New structural works, structural maintenance and equipment",TSS West Midlands Area,FORD-MAINWARING LTD,3912594," 26,160.00 "
Ministry of Justice,NOMS,25/03/2011,Professional Advice,Onley,NACRO PRISONS & RESETTLEMENT USE 94638,3882427," 26,143.30 "
Ministry of Justice,NOMS,25/03/2011,Professional Advice,Onley,NACRO PRISONS & RESETTLEMENT USE 94638,3896667," 26,143.30 "
Ministry of Justice,NOMS,25/03/2011,Professional Advice,Onley,NACRO PRISONS & RESETTLEMENT USE 94638,3933241," 26,143.30 "
Ministry of Justice,NOMS,09/03/2011,Contracted-out Catering Services,Woodhill,ARAMARK LTD,3920979," 26,134.03 "
Ministry of Justice,NOMS,04/03/2011,Electricity,Hewell,EDF ENERGY,3915931," 26,112.85 "
Ministry of Justice,NOMS,29/03/2011,General Maintenance Materials,Lewes,D B GREEN LTD,3942164," 26,106.00 "
Ministry of Justice,NOMS,17/03/2011,Gas,Onley,CORONA ENERGY RETAIL 4 LTD,3934832," 26,101.21 "
Ministry of Justice,NOMS,15/03/2011,Contracted-out Probation Trusts,Wayland,NORFOLK AND SUFFOLK PROBATION TRUST,3932298," 26,027.54 "
Ministry of Justice,NOMS,07/03/2011,Electricity,Mount (The),EDF ENERGY,3918641," 26,002.25 "
Ministry of Justice,NOMS,02/03/2011,Contracted-out Building Maintenance,Haverigg,JPR HYGIENIC (MIDLANDS) LTD,3912739," 25,950.00 "
Ministry of Justice,NOMS,17/03/2011,Gas,Whitemoor,CORONA ENERGY RETAIL 4 LTD,3934878," 25,647.89 "
Ministry of Justice,NOMS,31/03/2011,Contracted-out Library,East Sutton Park,KENT COUNTY COUNCIL,3952827," 25,635.45 "
Ministry of Justice,NOMS,22/03/2011,Counselling & Advisory Costs,Isle of Wight,SOUTH STAFFORDSHIRE AND SHROPSHIRE HEALTHCARE NHS FOUNDATION TRUST,3939152," 25,562.36 "
Ministry of Justice,NOMS,22/03/2011,Secondments,Public Protection and Mental Health Group,WEST YORKSHIRE PROBATION TRUST,3939850," 25,560.72 "
Ministry of Justice,NOMS,28/03/2011,General Maintenance Materials,Mount (The),CROWN FLOORING LTD,3945530," 25,453.44 "
Ministry of Justice,NOMS,23/03/2011,WIP - Acquisitions,Estates Capacity,KIER REGIONAL LTD,3943464," 25,443.72 "
Ministry of Justice,NOMS,24/03/2011,Agency Staff - General,Holloway,CENTRAL & NORTH WEST LONDON NHS FOUNDATION TRUST,3944116," 25,414.00 "
Ministry of Justice,NOMS,14/03/2011,"Books, Stationery & IT Consumables",Offender Employment Skills & Services Group,CARPENTER LTD,3930678," 25,412.90 "
Ministry of Justice,NOMS,30/03/2011,Office Equipment Purchases Under 10k,Moorland,B P DEMPSEY LTD,3953475," 25,404.00 "
Ministry of Justice,NOMS,07/03/2011,Electricity,Leeds,EDF ENERGY,3918558," 25,383.86 "
Ministry of Justice,NOMS,04/03/2011,Raw Materials - Local Industries,Maidstone,ANTALIS MCNAUGHTON LIMITED,3911869," 25,272.00 "
Ministry of Justice,NOMS,17/03/2011,"New structural works, structural maintenance and equipment",TSS West Midlands Area,BRINDLEY ASPHALT LTD,3922622," 25,238.40 "
Ministry of Justice,NOMS,10/03/2011,Other - Acquisitions,Littlehey,PROSAW LTD,3896942," 25,200.00 "
Ministry of Justice,NOMS,02/03/2011,Other - Acquisitions,Wealstun,PHOTOBASE LTD,3913348," 25,200.00 "
Ministry of Justice,NOMS,17/03/2011,Gas,Ford,CORONA ENERGY RETAIL 4 LTD,3934828," 25,152.55 "
Ministry of Justice,NOMS,09/03/2011,Counselling & Advisory Costs,Wayland,PHOENIX FUTURES,3922996," 25,084.00 "
Ministry of Justice,NOMS,07/03/2011,Counselling & Advisory Costs,NOMS Cymru Regional Services,WALES PROBATION TRUST,3918450," 25,062.20 "
Ministry of Justice,NOMS,07/03/2011,Electricity,Long Lartin,EDF ENERGY,3918713," 25,005.67 "
Ministry of Justice,NOMS,11/03/2011,"Prisoner Compensation over 5,000",Blantyre House,TREASURY SOLICITORS,3927019," 25,000.00 "
Ministry of Justice,NOMS,11/03/2011,Professional Advice,Estates Capacity,HVCA,3926839," 25,000.00 "
Ministry of Justice,NOMS,08/03/2011,Contracted-out Other Services,North East DOMS Office,NACRO SHEFFIELD,3920441," 25,000.00 "
Ministry of Justice,NOMS,08/03/2011,"Staff Compensation over 5,000",Brixton,TREASURY SOLICITORS,3918487," 25,000.00 "
Ministry of Justice,NOMS,30/03/2011,Contracted-out Probation Trusts,Lancaster Farms,LANCASHIRE PROBATION TRUST,3932314,"-25,000.00 "
Ministry of Justice,NOMS,25/03/2011,Professional Advice,Onley,NACRO PRISONS & RESETTLEMENT USE 94638,3933141,"-26,143.30 "
Ministry of Justice,NOMS,23/03/2011,Contracted-out Other Services,Isis,JLA LTD,3937133,"-27,724.13 "
Ministry of Justice,NOMS,01/03/2011,Agency Staff - General,Hindley,THE MANCHESTER COLLEGE,,"-28,016.91 "
Ministry of Justice,NOMS,07/03/2011,Electricity,Leeds,EDF ENERGY,3918528,"-28,682.63 "
Ministry of Justice,NOMS,18/03/2011,Contracted-out Escorts,Prisoner Escort & Custody Service (PECS),G4S CARE & JUSTICE SERVICES LTD,3913571,"-34,869.32 "
Ministry of Justice,NOMS,04/03/2011,Contracted-out Probation Trusts,Whatton,NOTTINGHAMSHIRE PROBATION TRUST,3915969,"-38,052.83 "
Ministry of Justice,NOMS,01/03/2011,Contracted-out Probation Trusts,Surrey & Sussex Probation Trust,SURREY & SUSSEX PROBATION TRUST,3909476,"-40,000.00 "
Ministry of Justice,NOMS,04/03/2011,Contracted-out Resettlement Services,NOMS CFO,MERSEYSIDE PROBATION TRUST,,"-40,324.00 "
Ministry of Justice,NOMS,14/03/2011,Contracted-out Escorts,Prisoner Escort & Custody Service (PECS),SERCO LTD,3907157,"-40,897.83 "
Ministry of Justice,NOMS,25/03/2011,Contracted-out Probation Trusts,Nottinghamshire Probation Trust,NOTTINGHAMSHIRE PROBATION TRUST,3930829,"-45,840.00 "
Ministry of Justice,NOMS,15/03/2011,Specialist Contractors,Performance Information and Analysis Group,PRICEWATERHOUSECOOPERS LLP,3890547,"-47,801.63 "
Ministry of Justice,NOMS,30/03/2011,Contracted-out Probation Trusts,Preston,LANCASHIRE PROBATION TRUST,3932335,"-50,000.00 "
Ministry of Justice,NOMS,04/03/2011,Contract IT Maintenance,MoJ ICT,HP ENTERPRISE SERVICES UK LTD,,"-54,340.07 "
Ministry of Justice,NOMS,16/03/2011,Gas,Haslar,CORONA ENERGY RETAIL 4 LTD,3933727,"-54,587.48 "
Ministry of Justice,NOMS,31/03/2011,Electricity,Lindholme,EDF ENERGY,3954850,"-59,101.20 "
Ministry of Justice,NOMS,04/03/2011,Contract IT Maintenance,MoJ ICT,MINISTRY OF JUSTICE,3904851,"-59,361.00 "
Ministry of Justice,NOMS,23/03/2011,WIP - Acquisitions,Estates Capacity,KIER REGIONAL LTD,3943860,"-68,166.45 "
Ministry of Justice,NOMS,18/03/2011,Inter-Unit Charge (IUC),Hampshire Probation Trust,HAMPSHIRE PROBATION TRUST,3904953,"-71,000.00 "
Ministry of Justice,NOMS,23/03/2011,WIP - Acquisitions,Estates Capacity,CRISPIN & BORST LTD,,"-84,538.90 "
Ministry of Justice,NOMS,30/03/2011,Training and Further Education Courses,Brinsford,ROFFEY PARK INSTITUTE,3946081,"-86,100.00 "
Ministry of Justice,NOMS,21/03/2011,Contracted-out Probation Trusts,Avon and Somerset Probation Trust,AVON AND SOMERSET PROBATION TRUST,3939499,"-88,000.00 "
Ministry of Justice,NOMS,25/03/2011,Professional Advice,High Security Prisons Group,TREASURY SOLICITORS,3946526,"-100,170.72 "
Ministry of Justice,NOMS,22/03/2011,Contract IT Maintenance,MoJ ICT,STERIA LTD,3920685,"-112,318.60 "
Ministry of Justice,NOMS,07/03/2011,Insurance,Peterborough,PETERBOROUGH PRISON MANAGEMENT LTD,3846170,"-117,500.49 "
Ministry of Justice,NOMS,07/03/2011,Insurance,Peterborough,PETERBOROUGH PRISON MANAGEMENT LTD,3888077,"-120,000.50 "
Ministry of Justice,NOMS,02/03/2011,Contracted-out Resettlement Services,NOMS CFO,LONDON PROBATION TRUST,,"-140,784.82 "
Ministry of Justice,NOMS,30/03/2011,Contracted-out Probation Boards,Bure,NORFOLK AND SUFFOLK PROBATION TRUST,3945229,"-150,358.50 "
Ministry of Justice,NOMS,17/03/2011,Gas,Haslar,CORONA ENERGY RETAIL 4 LTD,3934916,"-183,405.52 "
Ministry of Justice,NOMS,02/03/2011,Contracted-out Resettlement Services,NOMS CFO,A4E CONSULTING LTD,3898879,"-189,417.50 "
Ministry of Justice,NOMS,16/03/2011,Gas,Haslar,CORONA ENERGY RETAIL 4 LTD,3933713,"-201,100.51 "
Ministry of Justice,NOMS,22/03/2011,Contract IT Maintenance,MoJ ICT,STERIA LTD,3917068,"-210,111.97 "
Ministry of Justice,NOMS,18/03/2011,Contract IT Maintenance,MoJ ICT,STERIA LTD,3880439,"-399,054.00 "
Ministry of Justice,NOMS,29/03/2011,Contract IT Maintenance,MoJ ICT,STERIA LTD,3950092,"-462,890.02 "
Ministry of Justice,NOMS,30/03/2011,Contracted-out Probation Trusts,Hertfordshire Probation Trust,HERTFORDSHIRE PROBATION TRUST,3947025,"-941,842.74 "
Ministry of Justice,NOMS,18/03/2011,Contract IT Maintenance,MoJ ICT,STERIA LTD,3880438,"-977,590.69 "
Ministry of Justice,NOMS,31/03/2011,WIP - Acquisitions,Estates Capacity,INTERSERVE PROJECT SERVICES LTD,3948785,"-1,342,233.70 "
Ministry of Justice,NOMS,01/03/2011,Contracted-out Probation Trusts,Durham Tees Valley Probation Trust,DURHAM TEES VALLEY PROBATION TRUST,3909576,"-1,925,072.00 "
Ministry of Justice,NOMS,14/03/2011,Contracted-out Probation Trusts,Cambridgeshire Probation Trust,CAMBRIDGESHIRE & PETERBOROUGH PROBATION TRUST,3911738," 250,000.00 "
Ministry of Justice,NOMS,14/03/2011,Contracted-out Probation Trusts,Greater Manchester Probation Trust,GREATER MANCHESTER PROBATION TRUST,3915588," 3,454,166.67 "
Ministry of Justice,NOMS,14/03/2011,Funding payments to Probation Boards,West Midlands DOMS Office,WEST MERCIA PROBATION TRUST,3920271," 1,073,333.33 "
Ministry of Justice,NOMS,14/03/2011,Contracted-out Probation Boards,London DOMS Office,LONDON PROBATION TRUST,3925728," 7,070,833.33 "
Ministry of Justice,NOMS,15/03/2011,Contracted-out Probation Trusts,West Yorkshire Probation Trust,WEST YORKSHIRE PROBATION TRUST,3915541," 1,666,666.67 "
Ministry of Justice,NOMS,15/03/2011,Contracted-out Probation Trusts,York and North Yorkshire Probation Trust,YORK AND NORTH YORKSHIRE PROBATION TRUST,3915542," 291,666.67 "
Ministry of Justice,NOMS,15/03/2011,Contracted-out Probation Trusts,Humberside Probation Trust,HUMBERSIDE PROBATION TRUST,3920306," 293,333.33 "
Ministry of Justice,NOMS,15/03/2011,Contracted-out Probation Trusts,Norfolk & Suffolk Probation Trust,NORFOLK AND SUFFOLK PROBATION TRUST,3922632," 1,288,933.33 "
Ministry of Justice,NOMS,15/03/2011,Contracted-out Probation Trusts,Dorset Probation Trust,DORSET PROBATION TRUST,3924277," 378,179.50 "
Ministry of Justice,NOMS,16/03/2011,Funding payments to Probation Boards,West Midlands DOMS Office,STAFFORDSHIRE AND WEST MIDLANDS PROBATION TRUST,3915692," 2,083,333.33 "
Ministry of Justice,NOMS,16/03/2011,Contracted-out Probation Trusts,Wales Probation Trust,WALES PROBATION TRUST,3918504," 3,038,333.33 "
Ministry of Justice,NOMS,16/03/2011,Contracted-out Probation Trusts,Lincolnshire Probation Trust,LINCOLNSHIRE PROBATION TRUST,3920216," 166,666.67 "
Ministry of Justice,NOMS,16/03/2011,Contracted-out Probation Trusts,Gloucestershire Probation Trust,GLOUCESTERSHIRE PROBATION TRUST,3922706," 166,666.67 "
Ministry of Justice,NOMS,16/03/2011,Contracted-out Probation Trusts,Merseyside Probation Trust,MERSEYSIDE PROBATION TRUST,3923531," 1,000,000.00 "
Ministry of Justice,NOMS,16/03/2011,Funding payments to Probation Boards,West Midlands DOMS Office,WARWICKSHIRE PROBATION TRUST,3925047," 916,666.67 "
Ministry of Justice,NOMS,16/03/2011,Contracted-out Probation Trusts,Hertfordshire Probation Trust,HERTFORDSHIRE PROBATION TRUST,3926701," 250,000.00 "
Ministry of Justice,NOMS,17/03/2011,Contracted-out Probation Trusts,South Yorkshire Probation Trust,SOUTH YORKSHIRE PROBATION TRUST,3916309," 1,041,666.67 "
Ministry of Justice,NOMS,17/03/2011,Contracted-out Probation Trusts,South East DOMS Office,KENT PROBATION TRUST,3921206," 833,333.33 "
Ministry of Justice,NOMS,17/03/2011,Contracted-out Probation Trusts,South East DOMS Office,THAMES VALLEY PROBATION TRUST,3923315," 416,666.67 "
Ministry of Justice,NOMS,17/03/2011,Contracted-out Probation Trusts,Durham Tees Valley Probation Trust,DURHAM TEES VALLEY PROBATION TRUST,3930065," 750,000.00 "
Ministry of Justice,NOMS,18/03/2011,Funding payments to Probation Boards,West Midlands DOMS Office,STAFFORDSHIRE AND WEST MIDLANDS PROBATION TRUST,3915692," 2,916,666.67 "
Ministry of Justice,NOMS,18/03/2011,Contracted-out Probation Trusts,South East DOMS Office,SURREY & SUSSEX PROBATION TRUST,3917429," 937,500.00 "
Ministry of Justice,NOMS,18/03/2011,Contracted-out Probation Trusts,South East DOMS Office,HAMPSHIRE PROBATION TRUST,3921475," 666,666.67 "
Ministry of Justice,NOMS,18/03/2011,Contracted-out Probation Trusts,Devon and Cornwall Probation Trust,DEVON AND CORNWALL PROBATION TRUST,3922708," 308,333.33 "
Ministry of Justice,NOMS,23/03/2011,Contracted-out Probation Trusts,Cumbria Probation Trust,CUMBRIA PROBATION TRUST,3942546," 358,333.33 "
Ministry of Justice,NOMS,30/03/2011,Contracted-out Probation Trusts,Cambridgeshire Probation Trust,CAMBRIDGESHIRE & PETERBOROUGH PROBATION TRUST,3911738," 559,803.58 "
Ministry of Justice,NOMS,30/03/2011,Contracted-out Probation Trusts,West Yorkshire Probation Trust,WEST YORKSHIRE PROBATION TRUST,3915541," 1,868,433.33 "
Ministry of Justice,NOMS,30/03/2011,Contracted-out Probation Trusts,York and North Yorkshire Probation Trust,YORK AND NORTH YORKSHIRE PROBATION TRUST,3915542," 534,828.33 "
Ministry of Justice,NOMS,30/03/2011,Contracted-out Probation Trusts,Greater Manchester Probation Trust,GREATER MANCHESTER PROBATION TRUST,3915588," 1,342,650.33 "
Ministry of Justice,NOMS,30/03/2011,Funding payments to Probation Boards,West Midlands DOMS Office,STAFFORDSHIRE AND WEST MIDLANDS PROBATION TRUST,3915692," 5,558,334.00 "
Ministry of Justice,NOMS,30/03/2011,Contracted-out Probation Trusts,South Yorkshire Probation Trust,SOUTH YORKSHIRE PROBATION TRUST,3916309," 1,076,821.17 "
Ministry of Justice,NOMS,30/03/2011,Contracted-out Probation Trusts,South East DOMS Office,SURREY & SUSSEX PROBATION TRUST,3917429," 3,269,916.00 "
Ministry of Justice,NOMS,30/03/2011,Contracted-out Probation Trusts,Wales Probation Trust,WALES PROBATION TRUST,3918504," 1,510,084.67 "
Ministry of Justice,NOMS,30/03/2011,Contracted-out Probation Trusts,Lincolnshire Probation Trust,LINCOLNSHIRE PROBATION TRUST,3920216," 581,899.33 "
Ministry of Justice,NOMS,30/03/2011,Funding payments to Probation Boards,West Midlands DOMS Office,WEST MERCIA PROBATION TRUST,3920271," 667,116.67 "
Ministry of Justice,NOMS,30/03/2011,Contracted-out Probation Trusts,Humberside Probation Trust,HUMBERSIDE PROBATION TRUST,3920306," 1,237,145.83 "
Ministry of Justice,NOMS,30/03/2011,Contracted-out Probation Trusts,South East DOMS Office,KENT PROBATION TRUST,3921206," 734,356.67 "
Ministry of Justice,NOMS,30/03/2011,Contracted-out Probation Trusts,South East DOMS Office,HAMPSHIRE PROBATION TRUST,3921475," 1,444,484.00 "
Ministry of Justice,NOMS,30/03/2011,Contracted-out Probation Trusts,Norfolk & Suffolk Probation Trust,NORFOLK AND SUFFOLK PROBATION TRUST,3922632," 390,525.41 "
Ministry of Justice,NOMS,30/03/2011,Contracted-out Probation Trusts,Gloucestershire Probation Trust,GLOUCESTERSHIRE PROBATION TRUST,3922706," 441,306.39 "
Ministry of Justice,NOMS,30/03/2011,Contracted-out Probation Trusts,Devon and Cornwall Probation Trust,DEVON AND CORNWALL PROBATION TRUST,3922708," 1,318,005.67 "
Ministry of Justice,NOMS,30/03/2011,Contracted-out Probation Trusts,South East DOMS Office,THAMES VALLEY PROBATION TRUST,3923315," 1,694,963.98 "
Ministry of Justice,NOMS,30/03/2011,Contracted-out Probation Trusts,Merseyside Probation Trust,MERSEYSIDE PROBATION TRUST,3923531," 2,248,690.00 "
Ministry of Justice,NOMS,30/03/2011,Contracted-out Probation Trusts,Dorset Probation Trust,DORSET PROBATION TRUST,3924277," 378,179.50 "
Ministry of Justice,NOMS,30/03/2011,Funding payments to Probation Boards,West Midlands DOMS Office,WARWICKSHIRE PROBATION TRUST,3925047," 499,333.33 "
Ministry of Justice,NOMS,30/03/2011,Contracted-out Probation Boards,London DOMS Office,LONDON PROBATION TRUST,3925728," 2,929,166.67 "
Ministry of Justice,NOMS,30/03/2011,Contracted-out Probation Trusts,Hertfordshire Probation Trust,HERTFORDSHIRE PROBATION TRUST,3926701," 691,842.74 "
Ministry of Justice,NOMS,30/03/2011,Contracted-out Probation Trusts,Durham Tees Valley Probation Trust,DURHAM TEES VALLEY PROBATION TRUST,3930065," 1,175,071.87 "
Ministry of Justice,NOMS,30/03/2011,Contracted-out Probation Trusts,Cumbria Probation Trust,CUMBRIA PROBATION TRUST,3942546," 628,719.67 "
